Workbook

Sheet ÖSSZEFÜGGÉSEK
A2: Költségvetési rendelet űrlapjainak összefüggései:
A5: 2016. évi előirányzat BEVÉTELEK
A7: 1.1. sz. melléklet Bevételek táblázat C. oszlop 9 sora = | B7: 2.1. számú melléklet C. oszlop 13. sor + 2.2. számú melléklet C. oszlop 12. sor
A8: 1.1. sz. melléklet Bevételek táblázat C. oszlop 17 sora = | B8: 2.1. számú melléklet C. oszlop 24. sor + 2.2. számú melléklet C. oszlop 25. sor
A9: 1.1. sz. melléklet Bevételek táblázat C. oszlop 18 sora = | B9: 2.1. számú melléklet C. oszlop 25. sor + 2.2. számú melléklet C. oszlop 26. sor
A12: =+CONCATENATE(LEFT(A5,4),". évi előirányzat KIADÁSOK") -> 2016. évi előirányzat KIADÁSOK
A14: 1.1. sz. melléklet Kiadások táblázat C. oszlop 3 sora = | B14: 2.1. számú melléklet E. oszlop 13. sor + 2.2. számú melléklet E. oszlop 12. sor
A15: 1.1. sz. melléklet Kiadások táblázat C. oszlop 10 sora = | B15: 2.1. számú melléklet E. oszlop 24. sor + 2.2. számú melléklet E. oszlop 25. sor
A16: 1.1. sz. melléklet Kiadások táblázat C. oszlop 11 sora = | B16: 2.1. számú melléklet E. oszlop 25. sor + 2.2. számú melléklet E. oszlop 26. sor

Sheet 1.1.sz.mell.össz.
A1: B E V É T E L E K
A2: 1. sz. táblázat
A3: Sor- szám | B3: Bevételi jogcím | C3: =+CONCATENATE(LEFT(ÖSSZEFÜGGÉSEK!A5,4),".évi eredeti előirányzat") -> 2016.évi eredeti előirányzat | D3: =+CONCATENATE(LEFT(ÖSSZEFÜGGÉSEK!B5,4),"2016.évi módosított előirányzat") -> 2016.évi módosított előirányzat | E3: Teljesített
A4: A | B4: B | C4: C | D4: D | E4: E
A5: 1. | B5: Önkormányzat működési támogatásai (1.1.+…+.1.6.) | C5: =+C6+C7+C8+C9+C10+C11 -> 30112390 | D5: =+D6+D7+D8+D9+D10+D11 -> 36649712 | E5: =+E6+E7+E8+E9+E10+E11 -> 36649712
A6: 1.1. | B6: Helyi önkormányzatok működésének általános támogatása | C6: 12174237 | D6: 13510578 | E6: 13510578
A7: 1.2. | B7: Önkormányzatok egyes köznevelési feladatainak támogatása | D7: 0
A8: 1.3. | B8: Önkormányzatok szociális és gyermekjóléti feladatainak támogatása | C8: 16424233 | D8: 16424233 | E8: 16424233
A9: 1.4. | B9: Önkormányzatok kulturális feladatainak támogatása | C9: 1513920 | D9: 1513920 | E9: 1513920
A10: 1.5. | B10: Működési célú kvi támogatások és kiegészítő támogatások | D10: 5200981 | E10: 5200981
A11: 1.6. | B11: Elszámolásból származó bevételek | D11: 0
A12: 2. | B12: Működési célú támogatások államháztartáson belülről (2.1.+…+.2.5.) | C12: =+C13+C14+C15+C16+C17 -> 9999024 | D12: =+D13+D14+D15+D16+D17 -> 12692090 | E12: =+E13+E14+E15+E16+E17 -> 19278673
A13: 2.1. | B13: Elvonások és befizetések bevételei
A14: 2.2. | B14: Működési célú garancia- és kezességvállalásból megtérülések
A15: 2.3. | B15: Működési célú visszatérítendő támogatások, kölcsönök visszatérülése
A16: 2.4. | B16: Működési célú visszatérítendő támogatások, kölcsönök igénybevétele
A17: 2.5. | B17: Egyéb működési célú támogatások bevételei | C17: 9999024 | D17: 12692090 | E17: 19278673
A18: 2.6. | B18: 2.5.-ből EU-s támogatás
A19: 3. | B19: Felhalmozási célú támogatások államháztartáson belülről (3.1.+…+3.5.) | C19: =+C20+C21+C22+C23+C24 -> 0 | D19: =+D20+D21+D22+D23+D24 -> 14252082 | E19: =+E20+E21+E22+E23+E24 -> 14252082
A20: 3.1. | B20: Felhalmozási célú önkormányzati támogatások | D20: 0
A21: 3.2. | B21: Felhalmozási célú garancia- és kezességvállalásból megtérülések
A22: 3.3. | B22: Felhalmozási célú visszatérítendő támogatások, kölcsönök visszatérülése
A23: 3.4. | B23: Felhalmozási célú visszatérítendő támogatások, kölcsönök igénybevétele
A24: 3.5. | B24: Egyéb felhalmozási célú támogatások bevételei | D24: 14252082 | E24: 14252082
A25: 3.6. | B25: 3.5.-ből EU-s támogatás
A26: 4. | B26: Közhatalmi bevételek (4.1.+4.2.+4.3.+4.4.) | C26: =+C27+C31+C32+C33 -> 32430000 | D26: =+D27+D31+D32+D33 -> 45370312 | E26: =+E27+E31+E32+E33 -> 34342442
A27: 4.1. | B27: Helyi adók (4.1.1.+...+4.1.3.) | C27: =+C28+C29+C30 -> 27500000 | D27: =+D28+D29+D30 -> 34427029 | E27: =+E28+E29+E30 -> 29800753
A28: 4.1.1. | B28: - Vagyoni típusú adók | C28: 6000000 | D28: 7948566 | E28: 6707174
A29: 4.1.2. | B29: - Termékek és szolgáltatások adói
A30: 4.1.3. | B30: - Értékesítési és forgalmi adók (iparűzési adó) | C30: 21500000 | D30: 26478463 | E30: 23093579
A31: 4.2. | B31: Gépjárműadó | C31: 4000000 | D31: 9000000 | E31: 3841170
A32: 4.3. | B32: Egyéb áruhasználati és szolgáltatási adók | C32: 570000 | D32: 820000 | E32: 506150
A33: 4.4. | B33: Egyéb közhatalmi bevételek | C33: 360000 | D33: 1123283 | E33: 194369
A34: 5. | B34: Működési bevételek (5.1.+…+ 5.11.) | C34: =SUM(C35:C45) -> 19908496 | D34: =SUM(D35:D45) -> 25325467 | E34: =SUM(E35:E45) -> 14120157
A35: 5.1. | B35: Készletértékesítés ellenértéke | C35: 0 | D35: 0
A36: 5.2. | B36: Szolgáltatások ellenértéke | C36: 6200000 | D36: 6200000 | E36: 2337875
A37: 5.3. | B37: Közvetített szolgáltatások értéke | C37: 700000 | D37: 1779383 | E37: 829596
A38: 5.4. | B38: Tulajdonosi bevételek | C38: 2100000 | D38: 2100000 | E38: 1946176
A39: 5.5. | B39: Ellátási díjak | C39: 3300000 | D39: 7130789 | E39: 6348810
A40: 5.6. | B40: Kiszámlázott általános forgalmi adó | C40: 2754000 | D40: 3233031 | E40: 2623900
A41: 5.7. | B41: Általános forgalmi adó visszatérítése | C41: 4854496 | D41: 4854496
A42: 5.8. | B42: Kamatbevételek | D42: 27768 | E42: 33800
A43: 5.9. | B43: Egyéb pénzügyi műveletek bevételei
A44: 5.10. | B44: Biztosító által fizetett kártérítés
A45: 5.11. | B45: Egyéb működési bevételek | D45: 0
A46: 6. | B46: Felhalmozási bevételek (6.1.+…+6.5.) | C46: =SUM(C47:C51) -> 0 | D46: =SUM(D47:D51) -> 0 | E46: =SUM(E47:E51) -> 0
A47: 6.1. | B47: Immateriális javak értékesítése
A48: 6.2. | B48: Ingatlanok értékesítése | C48: 0 | D48: 0
A49: 6.3. | B49: Egyéb tárgyi eszközök értékesítése | D49: 0
A50: 6.4. | B50: Részesedések értékesítése
A51: 6.5. | B51: Részesedések megszűnéséhez kapcsolódó bevételek
A52: 7. | B52: Működési célú átvett pénzeszközök (7.1. + … + 7.3.) | C52: =SUM(C53:C55) -> 0 | D52: =SUM(D53:D55) -> 64310 | E52: =SUM(E53:E55) -> 64310
A53: 7.1. | B53: Működési célú garancia- és kezességvállalásból megtérülések ÁH-n kívülről
A54: 7.2. | B54: Működési célú visszatérítendő támogatások, kölcsönök visszatér. ÁH-n kívülről
A55: 7.3. | B55: Egyéb működési célú átvett pénzeszköz | D55: 64310 | E55: 64310
A56: 7.4. | B56: 7.3.-ból EU-s támogatás (közvetlen)
A57: 8. | B57: Felhalmozási célú átvett pénzeszközök (8.1.+8.2.+8.3.) | C57: =SUM(C58:C60) -> 1000000 | D57: =SUM(D58:D60) -> 1445613 | E57: =SUM(E58:E60) -> 1445613
A58: 8.1. | B58: Felhalm. célú garancia- és kezességvállalásból megtérülések ÁH-n kívülről
A59: 8.2. | B59: Felhalm. célú visszatérítendő támogatások, kölcsönök visszatér. ÁH-n kívülről | D59: 445613 | E59: 445613
A60: 8.3. | B60: Egyéb felhalmozási célú átvett pénzeszköz | C60: 1000000 | D60: 1000000 | E60: 1000000
A61: 8.4. | B61: 8.3.-ból EU-s támogatás (közvetlen)
A62: 9. | B62: KÖLTSÉGVETÉSI BEVÉTELEK ÖSSZESEN: (1+…+8) | C62: =+C5+C12+C19+C26+C34+C46+C52+C57 -> 93449910 | D62: =+D5+D12+D19+D26+D34+D46+D52+D57 -> 135799586 | E62: =+E5+E12+E19+E26+E34+E46+E52+E57 -> 120152989
A63: 10. | B63: Hitel-, kölcsönfelvétel államháztartáson kívülről (10.1.+10.3.) | C63: =SUM(C64:C66) -> 0 | D63: =SUM(D64:D66) -> 0 | E63: =SUM(E64:E66) -> 0
A64: 10.1. | B64: Hosszú lejáratú hitelek, kölcsönök felvétele
A65: 10.2. | B65: Likviditási célú hitelek, kölcsönök felvétele pénzügyi vállalkozástól | D65: 0
A66: 10.3. | B66: Rövid lejáratú hitelek, kölcsönök felvétele | D66: 0
A67: 11. | B67: Belföldi értékpapírok bevételei (11.1. +…+ 11.4.) | C67: =SUM(C68:C71) -> 0 | D67: =SUM(D68:D71) -> 50000 | E67: 50000
A68: 11.1. | B68: Forgatási célú belföldi értékpapírok beváltása, értékesítése | D68: 50000 | E68: 50000
A69: 11.2. | B69: Forgatási célú belföldi értékpapírok kibocsátása
A70: 11.3. | B70: Befektetési célú belföldi értékpapírok beváltása, értékesítése
A71: 11.4. | B71: Befektetési célú belföldi értékpapírok kibocsátása
A72: 12. | B72: Maradvány igénybevétele (12.1. + 12.2.) | C72: =SUM(C73:C74) -> 11455631 | D72: =SUM(D73:D74) -> 14399745 | E72: =SUM(E73:E74) -> 14399745
A73: 12.1. | B73: Előző év költségvetési maradványának igénybevétele | C73: 11455631 | D73: 14399745 | E73: 14399745
A74: 12.2. | B74: Előző év vállalkozási maradványának igénybevétele
A75: 13. | B75: Belföldi finanszírozás bevételei (13.1. + … + 13.3.) | C75: =SUM(C76:C78) -> 0 | D75: =SUM(D76:D78) -> 0 | E75: =SUM(E76:E78) -> 1421796
A76: 13.1. | B76: Államháztartáson belüli megelőlegezések | E76: 1421796
A77: 13.2. | B77: Államháztartáson belüli megelőlegezések törlesztése
A78: 13.3. | B78: Betétek megszüntetése | D78: 0
A79: 14. | B79: Külföldi finanszírozás bevételei (14.1.+…14.4.) | C79: =SUM(C80:C83) -> 0 | D79: =SUM(D80:D83) -> 0
A80: 14.1. | B80: Forgatási célú külföldi értékpapírok beváltása, értékesítése
A81: 14.2. | B81: Befektetési célú külföldi értékpapírok beváltása, értékesítése
A82: 14.3. | B82: Külföldi értékpapírok kibocsátása
A83: 14.4. | B83: Külföldi hitelek, kölcsönök felvétele
A84: 15. | B84: Váltóbevételek
A85: 16. | B85: Adóssághoz nem kapcsolódó származékos ügyletek bevételei
A86: 17. | B86: FINANSZÍROZÁSI BEVÉTELEK ÖSSZESEN: (10. + … +16.) | C86: =+C63+C67+C72+C75+C79+C85+C84 -> 11455631 | D86: =+D63+D67+D72+D75+D79+D85+D84 -> 14449745 | E86: =+E63+E67+E72+E75+E79+E85+E84 -> 15871541
A87: 18. | B87: KÖLTSÉGVETÉSI ÉS FINANSZÍROZÁSI BEVÉTELEK ÖSSZESEN: (9+17) | C87: =+C62+C86 -> 104905541 | D87: =+D62+D86 -> 150249331 | E87: =+E62+E86 -> 136024530
A89: K I A D Á S O K
A90: 2. sz. táblázat | E90: Ezer forintban
A91: Sor- szám | B91: Kiadási jogcímek | C91: =+C3 -> 2016.évi eredeti előirányzat | D91: =+D3 -> 2016.évi módosított előirányzat | E91: Teljesített
A92: A | B92: B | C92: C | D92: C
A93: 1. | B93: Működési költségvetés kiadásai (1.1+…+1.5.+1.18.) | C93: =C94+C95+C96+C97+C98 -> 90508133 | D93: =D94+D95+D96+D97+D98 -> 120944364 | E93: =E94+E95+E96+E97+E98+E111 -> 104680916
A94: 1.1. | B94: Személyi juttatások | C94: 22318954 | D94: 29629833 | E94: 29610129
A95: 1.2. | B95: Munkaadókat terhelő járulékok és szociális hozzájárulási adó | C95: 4791948 | D95: 7578279 | E95: 7531579
A96: 1.3. | B96: Dologi kiadások | C96: 42696280 | D96: 54989901 | E96: 44374234
A97: 1.4. | B97: Ellátottak pénzbeli juttatásai | C97: 8000000 | D97: 4953100 | E97: 4952200
A98: 1.5 | B98: Egyéb működési célú kiadások | C98: 12700951 | D98: 23793251 | E98: 18212774
A99: 1.6. | B99: - az 1.5-ből: - Előző évi elszámolásból származó befizetések
A100: 1.7. | B100: - Törvényi előíráson alapuló befizetések
A101: 1.8. | B101: - Elvonások és befizetések | D101: 3280000 | E101: 3279002
A102: 1.9. | B102: - Garancia- és kezességvállalásból kifizetés ÁH-n belülre
A103: 1.10. | B103: -Visszatérítendő támogatások, kölcsönök nyújtása ÁH-n belülre
A104: 1.11. | B104: - Visszatérítendő támogatások, kölcsönök törlesztése ÁH-n belülre
A105: 1.12. | B105: - Egyéb működési célú támogatások ÁH-n belülre | C105: 11197000 | D105: 12632667 | E105: 12632188
A106: 1.13. | B106: - Garancia és kezességvállalásból kifizetés ÁH-n kívülre
A107: 1.14. | B107: - Visszatérítendő támogatások, kölcsönök nyújtása ÁH-n kívülre
A108: 1.15. | B108: - Árkiegészítések, ártámogatások
A109: 1.16. | B109: - Kamattámogatások
A110: 1.17. | B110: - Egyéb működési célú támogatások államháztartáson kívülre | C110: 1500000 | D110: 7868659 | E110: 2301584
A111: 1.18. | B111: Tartalékok
A112: 1.19. | B112: - az 1.18-ból: - Általános tartalék | C112: 3951 | D112: 11925
A113: 1.20. | B113: - Céltartalék | D113: 0
A114: 2. | B114: Felhalmozási költségvetés kiadásai (2.1.+2.3.+2.5.) | C114: =+C115+C117+C119 -> 14397408 | D114: =+D115+D117+D119 -> 28101345 | E114: =+E115+E117+E119 -> 17068510
A115: 2.1. | B115: Beruházások | C115: 4627664 | D115: 4560600 | E115: 1920184
A116: 2.2. | B116: 2.1.-ből EU-s forrásból megvalósuló beruházás
A117: 2.3. | B117: Felújítások | C117: 9769744 | D117: 23540745 | E117: 15148326
A118: 2.4. | B118: 2.3.-ból EU-s forrásból megvalósuló felújítás
A119: 2.5. | B119: Egyéb felhalmozási kiadások
A120: 2.6. | B120: 2.5.-ből - Garancia- és kezességvállalásból kifizetés ÁH-n belülre
A121: 2.7. | B121: - Visszatérítendő támogatások, kölcsönök nyújtása ÁH-n belülre
A122: 2.8. | B122: - Visszatérítendő támogatások, kölcsönök törlesztése ÁH-n belülre
A123: 2.9. | B123: - Egyéb felhalmozási célú támogatások ÁH-n belülre
A124: 2.10. | B124: - Garancia- és kezességvállalásból kifizetés ÁH-n kívülre
A125: 2.11. | B125: - Visszatérítendő támogatások, kölcsönök nyújtása ÁH-n kívülre
A126: 2.12. | B126: - Lakástámogatás
A127: 2.13. | B127: - Egyéb felhalmozási célú támogatások államháztartáson kívülre
A128: 3. | B128: KÖLTSÉGVETÉSI KIADÁSOK ÖSSZESEN (1+2) | C128: =+C93+C114 -> 104905541 | D128: =+D93+D114 -> 149045709 | E128: =+E93+E114 -> 121749426
A129: 4. | B129: Hitel-, kölcsöntörlesztés államháztartáson kívülre (4.1. + … + 4.3.) | C129: =+C130+C131+C132 -> 0 | D129: =+D130+D131+D132 -> 0 | E129: =+E130+E131+E132 -> 0
A130: 4.1. | B130: Hosszú lejáratú hitelek, kölcsönök törlesztése pénzügyi vállalkozásnak
A131: 4.2. | B131: Likviditási célú hitelek, kölcsönök törlesztése pénzügyi vállalkozásnak
A132: 4.3. | B132: Rövid lejáratú hitelek, kölcsönök törlesztése pénzügyi vállalkozásnak
A133: 5. | B133: Belföldi értékpapírok kiadásai (5.1. + … + 5.6.) | C133: =SUM(C134:C139) -> 0 | D133: =SUM(D134:D139) -> 0
A134: 5.1. | B134: Forgatási célú belföldi értékpapírok vásárlása
A135: 5.2. | B135: Befektetési célú belföldi értékpapírok vásárlása
A136: 5.3. | B136: Kincstárjegyek beváltása
A137: 5.4. | B137: Éven belüli lejáratú belföldi értékpapírok beváltása
A138: 5.5. | B138: Belföldi kötvények beváltása
A139: 5.6. | B139: Éven túli lejáratú belföldi értékpapírok beváltása
A140: 6. | B140: Belföldi finanszírozás kiadásai (6.1. + … + 6.4.) | C140: =+C141+C142+C143+C144 -> 0 | D140: =+D141+D142+D143+D144 -> 1203622 | E140: =+E141+E142+E143+E144 -> 1203622
A141: 6.1. | B141: Államháztartáson belüli megelőlegezések folyósítása
A142: 6.2. | B142: Államháztartáson belüli megelőlegezések visszafizetése | D142: 1203622 | E142: 1203622
A143: 6.3. | B143: Pénzeszközök lekötött betétként elhelyezése
A144: 6.4. | B144: Pénzügyi lízing kiadásai
A145: 7. | B145: Külföldi finanszírozás kiadásai (7.1. + … + 7.5.) | C145: =SUM(C146:C150) -> 0 | D145: =SUM(D146:D150) -> 0
A146: 7.1. | B146: Forgatási célú külföldi értékpapírok vásárlása
A147: 7.2. | B147: Befektetési célú külföldi értékpapírok vásárlása
A148: 7.3. | B148: Külföldi értékpapírok beváltása
A149: 7.4. | B149: Hitelek, kölcsönök törlesztése külföldi kormányoknak nemz. Szervezeteknek
A150: 7.5. | B150: Hitelek, kölcsönök törlesztése külföldi pénzintézeteknek
A151: 8. | B151: Adóssághoz nem kapcsolódó származékos ügyletek
A152: 9. | B152: Váltókiadások
A153: 10. | B153: FINANSZÍROZÁSI KIADÁSOK ÖSSZESEN: (4.+…+9.) | C153: =+C129+C133+C140+C145+C151+C152 -> 0 | D153: =+D129+D133+D140+D145+D151+D152 -> 1203622 | E153: =+E129+E133+E140+E145+E151+E152 -> 1203622
A154: 11. | B154: KIADÁSOK ÖSSZESEN: (3.+10.) | C154: =+C128+C153 -> 104905541 | D154: =+D128+D153 -> 150249331 | E154: =+E128+E153 -> 122953048
A156: KÖLTSÉGVETÉSI, FINANSZÍROZÁSI BEVÉTELEK ÉS KIADÁSOK EGYENLEGE
A157: 3. sz. táblázat | E157: Ezer forintban
A158: 1 | B158: Költségvetési hiány, többlet ( költségvetési bevételek 9. sor - költségvetési kiadások 3. sor) (+/-) | C158: =+C62-C128 -> -11455631 | D158: =+D62-D128 -> -13246123 | E158: =+E62-E128 -> -1596437
A159: 2. | B159: Finanszírozási bevételek, kiadások egyenlege (finanszírozási bevételek 17. sor - finanszírozási kiadások 10. sor) (+/-) | C159: =+C86-C153 -> 11455631 | D159: =+D86-D153 -> 13246123 | E159: =+E86-E153 -> 14667919

Sheet 1.2sz.mell.közelező
A1: B E V É T E L E K
A2: 1. sz. táblázat
A3: Sor- szám | B3: Bevételi jogcím | C3: =+CONCATENATE(LEFT(ÖSSZEFÜGGÉSEK!A5,4),". évi eredeti előirányzat") -> 2016. évi eredeti előirányzat | D3: =+CONCATENATE(LEFT(ÖSSZEFÜGGÉSEK!B5,4),"2016.évimódosítottelőirányzat") -> 2016.évimódosítottelőirányzat | E3: Teljesített
A4: A | B4: B | C4: C | D4: D | E4: E
A5: 1. | B5: Önkormányzat működési támogatásai (1.1.+…+.1.6.) | C5: =+C6+C7+C8+C9+C10+C11 -> 30112390 | D5: =+D6+D7+D8+D9+D10+D11 -> 36649712 | E5: =+E6+E7+E8+E9+E10+E11 -> 36649712
A6: 1.1. | B6: Helyi önkormányzatok működésének általános támogatása | C6: 12174237 | D6: 13510578 | E6: 13510578
A7: 1.2. | B7: Önkormányzatok egyes köznevelési feladatainak támogatása
A8: 1.3. | B8: Önkormányzatok szociális és gyermekjóléti feladatainak támogatása | C8: 16424233 | D8: 16424233 | E8: 16424233
A9: 1.4. | B9: Önkormányzatok kulturális feladatainak támogatása | C9: 1513920 | D9: 1513920 | E9: 1513920
A10: 1.5. | B10: Működési célú kvi támogatások és kiegészítő támogatások | D10: 5200981 | E10: 5200981
A11: 1.6. | B11: Elszámolásból származó bevételek
A12: 2. | B12: Működési célú támogatások államháztartáson belülről (2.1.+…+.2.5.) | C12: =+C13+C14+C15+C16+C17 -> 9999024 | D12: =+D13+D14+D15+D16+D17 -> 12692090 | E12: =+E13+E14+E15+E16+E17 -> 19278673
A13: 2.1. | B13: Elvonások és befizetések bevételei
A14: 2.2. | B14: Működési célú garancia- és kezességvállalásból megtérülések
A15: 2.3. | B15: Működési célú visszatérítendő támogatások, kölcsönök visszatérülése
A16: 2.4. | B16: Működési célú visszatérítendő támogatások, kölcsönök igénybevétele
A17: 2.5. | B17: Egyéb működési célú támogatások bevételei | C17: 9999024 | D17: 12692090 | E17: 19278673
A18: 2.6. | B18: 2.5.-ből EU-s támogatás
A19: 3. | B19: Felhalmozási célú támogatások államháztartáson belülről (3.1.+…+3.5.) | C19: =+C20+C21+C22+C23+C24 -> 0 | D19: =+D20+D21+D22+D23+D24 -> 14252082 | E19: =+E20+E21+E22+E23+E24 -> 14252082
A20: 3.1. | B20: Felhalmozási célú önkormányzati támogatások
A21: 3.2. | B21: Felhalmozási célú garancia- és kezességvállalásból megtérülések
A22: 3.3. | B22: Felhalmozási célú visszatérítendő támogatások, kölcsönök visszatérülése
A23: 3.4. | B23: Felhalmozási célú visszatérítendő támogatások, kölcsönök igénybevétele
A24: 3.5. | B24: Egyéb felhalmozási célú támogatások bevételei | D24: 14252082 | E24: 14252082
A25: 3.6. | B25: 3.5.-ből EU-s támogatás
A26: 4. | B26: Közhatalmi bevételek (4.1.+4.2.+4.3.+4.4.) | C26: =+C27+C31+C32+C33 -> 32430000 | D26: =+D27+D31+D32+D33 -> 45370312 | E26: =+E27+E31+E32+E33 -> 34342442
A27: 4.1. | B27: Helyi adók (4.1.1.+...+4.1.3.) | C27: =+C28+C29+C30 -> 27500000 | D27: =+D28+D29+D30 -> 34427029 | E27: =+E28+E29+E30 -> 29800753
A28: 4.1.1. | B28: - Vagyoni típusú adók | C28: 6000000 | D28: 7948566 | E28: 6707174
A29: 4.1.2. | B29: - Termékek és szolgáltatások adói
A30: 4.1.3. | B30: - Értékesítési és forgalmi adók (iparűzési adó) | C30: 21500000 | D30: 26478463 | E30: 23093579
A31: 4.2. | B31: Gépjárműadó | C31: 4000000 | D31: 9000000 | E31: 3841170
A32: 4.3. | B32: Egyéb áruhasználati és szolgáltatási adók | C32: 570000 | D32: 820000 | E32: 506150
A33: 4.4. | B33: Egyéb közhatalmi bevételek | C33: 360000 | D33: 1123283 | E33: 194369
A34: 5. | B34: Működési bevételek (5.1.+…+ 5.11.) | C34: =SUM(C35:C45) -> 19908496 | D34: =SUM(D35:D45) -> 25325467 | E34: =SUM(E35:E45) -> 14120157
A35: 5.1. | B35: Készletértékesítés ellenértéke
A36: 5.2. | B36: Szolgáltatások ellenértéke | C36: 6200000 | D36: 6200000 | E36: 2337875
A37: 5.3. | B37: Közvetített szolgáltatások értéke | C37: 700000 | D37: 1779383 | E37: 829596
A38: 5.4. | B38: Tulajdonosi bevételek | C38: 2100000 | D38: 2100000 | E38: 1946176
A39: 5.5. | B39: Ellátási díjak | C39: 3300000 | D39: 7130789 | E39: 6348810
A40: 5.6. | B40: Kiszámlázott általános forgalmi adó | C40: 2754000 | D40: 3233031 | E40: 2623900
A41: 5.7. | B41: Általános forgalmi adó visszatérítése | C41: 4854496 | D41: 4854496
A42: 5.8. | B42: Kamatbevételek | D42: 27768 | E42: 33800
A43: 5.9. | B43: Egyéb pénzügyi műveletek bevételei
A44: 5.10. | B44: Biztosító által fizetett kártérítés
A45: 5.11. | B45: Egyéb működési bevételek
A46: 6. | B46: Felhalmozási bevételek (6.1.+…+6.5.) | C46: =SUM(C47:C51) -> 0 | D46: =SUM(D47:D51) -> 0 | E46: =SUM(E47:E51) -> 0
A47: 6.1. | B47: Immateriális javak értékesítése
A48: 6.2. | B48: Ingatlanok értékesítése
A49: 6.3. | B49: Egyéb tárgyi eszközök értékesítése
A50: 6.4. | B50: Részesedések értékesítése
A51: 6.5. | B51: Részesedések megszűnéséhez kapcsolódó bevételek
A52: 7. | B52: Működési célú átvett pénzeszközök (7.1. + … + 7.3.) | C52: =SUM(C53:C55) -> 0 | D52: =SUM(D53:D55) -> 64310 | E52: =SUM(E53:E55) -> 64310
A53: 7.1. | B53: Működési célú garancia- és kezességvállalásból megtérülések ÁH-n kívülről
A54: 7.2. | B54: Működési célú visszatérítendő támogatások, kölcsönök visszatér. ÁH-n kívülről
A55: 7.3. | B55: Egyéb működési célú átvett pénzeszköz | D55: 64310 | E55: 64310
A56: 7.4. | B56: 7.3.-ból EU-s támogatás (közvetlen)
A57: 8. | B57: Felhalmozási célú átvett pénzeszközök (8.1.+8.2.+8.3.) | C57: =SUM(C58:C60) -> 1000000 | D57: =SUM(D58:D60) -> 1445613 | E57: =SUM(E58:E60) -> 1445613
A58: 8.1. | B58: Felhalm. célú garancia- és kezességvállalásból megtérülések ÁH-n kívülről
A59: 8.2. | B59: Felhalm. célú visszatérítendő támogatások, kölcsönök visszatér. ÁH-n kívülről | D59: 445613 | E59: 445613
A60: 8.3. | B60: Egyéb felhalmozási célú átvett pénzeszköz | C60: 1000000 | D60: 1000000 | E60: 1000000
A61: 8.4. | B61: 8.3.-ból EU-s támogatás (közvetlen)
A62: 9. | B62: KÖLTSÉGVETÉSI BEVÉTELEK ÖSSZESEN: (1+…+8) | C62: =+C5+C12+C19+C26+C34+C46+C52+C57 -> 93449910 | D62: =+D5+D12+D19+D26+D34+D46+D52+D57 -> 135799586 | E62: =+E5+E12+E19+E26+E34+E46+E52+E57 -> 120152989
A63: 10. | B63: Hitel-, kölcsönfelvétel államháztartáson kívülről (10.1.+10.3.) | C63: =SUM(C64:C66) -> 0 | D63: =SUM(D64:D66) -> 0 | E63: =SUM(E64:E66) -> 0
A64: 10.1. | B64: Hosszú lejáratú hitelek, kölcsönök felvétele
A65: 10.2. | B65: Likviditási célú hitelek, kölcsönök felvétele pénzügyi vállalkozástól
A66: 10.3. | B66: Rövid lejáratú hitelek, kölcsönök felvétele
A67: 11. | B67: Belföldi értékpapírok bevételei (11.1. +…+ 11.4.) | C67: =SUM(C68:C71) -> 0 | D67: =SUM(D68:D71) -> 50000 | E67: =SUM(E68:E71) -> 50000
A68: 11.1. | B68: Forgatási célú belföldi értékpapírok beváltása, értékesítése
A69: 11.2. | B69: Forgatási célú belföldi értékpapírok kibocsátása
A70: 11.3. | B70: Befektetési célú belföldi értékpapírok beváltása, értékesítése | D70: 50000 | E70: 50000
A71: 11.4. | B71: Befektetési célú belföldi értékpapírok kibocsátása
A72: 12. | B72: Maradvány igénybevétele (12.1. + 12.2.) | C72: =SUM(C73:C74) -> 11455631 | D72: =SUM(D73:D74) -> 14399745 | E72: =SUM(E73:E74) -> 14399745
A73: 12.1. | B73: Előző év költségvetési maradványának igénybevétele | C73: 11455631 | D73: 14399745 | E73: 14399745
A74: 12.2. | B74: Előző év vállalkozási maradványának igénybevétele
A75: 13. | B75: Belföldi finanszírozás bevételei (13.1. + … + 13.3.) | C75: =SUM(C76:C78) -> 0 | D75: =SUM(D76:D78) -> 0 | E75: =SUM(E76:E78) -> 1421796
A76: 13.1. | B76: Államháztartáson belüli megelőlegezések | E76: 1421796
A77: 13.2. | B77: Államháztartáson belüli megelőlegezések törlesztése
A78: 13.3. | B78: Betétek megszüntetése
A79: 14. | B79: Külföldi finanszírozás bevételei (14.1.+…14.4.) | C79: =SUM(C80:C83) -> 0 | D79: =SUM(D80:D83) -> 0
A80: 14.1. | B80: Forgatási célú külföldi értékpapírok beváltása, értékesítése
A81: 14.2. | B81: Befektetési célú külföldi értékpapírok beváltása, értékesítése
A82: 14.3. | B82: Külföldi értékpapírok kibocsátása
A83: 14.4. | B83: Külföldi hitelek, kölcsönök felvétele
A84: 15. | B84: Váltóbevételek
A85: 16. | B85: Adóssághoz nem kapcsolódó származékos ügyletek bevételei
A86: 17. | B86: FINANSZÍROZÁSI BEVÉTELEK ÖSSZESEN: (10. + … +16.) | C86: =+C63+C67+C72+C75+C79+C85+C84 -> 11455631 | D86: =+D63+D67+D72+D75+D79+D85+D84 -> 14449745 | E86: =+E63+E67+E72+E75+E79+E85+E84 -> 15871541
A87: 18. | B87: KÖLTSÉGVETÉSI ÉS FINANSZÍROZÁSI BEVÉTELEK ÖSSZESEN: (9+17) | C87: =+C62+C86 -> 104905541 | D87: =+D62+D86 -> 150249331 | E87: =+E62+E86 -> 136024530
A89: K I A D Á S O K
A90: 2. sz. táblázat | E90: Ezer forintban
A91: Sor- szám | B91: Kiadási jogcímek | C91: =+C3 -> 2016. évi eredeti előirányzat | D91: =+D3 -> 2016.évimódosítottelőirányzat | E91: Teljesített
A92: A | B92: B | C92: C | D92: C
A93: 1. | B93: Működési költségvetés kiadásai (1.1+…+1.5.+1.18.) | C93: =C94+C95+C96+C97+C98 -> 90508133 | D93: =D94+D95+D96+D97+D98 -> 120944364 | E93: =E94+E95+E96+E97+E98+E111 -> 104680916
A94: 1.1. | B94: Személyi juttatások | C94: 22318954 | D94: 29629833 | E94: 29610129
A95: 1.2. | B95: Munkaadókat terhelő járulékok és szociális hozzájárulási adó | C95: 4791948 | D95: 7578279 | E95: 7531579
A96: 1.3. | B96: Dologi kiadások | C96: 42696280 | D96: 54989901 | E96: 44374234
A97: 1.4. | B97: Ellátottak pénzbeli juttatásai | C97: 8000000 | D97: 4953100 | E97: 4952200
A98: 1.5 | B98: Egyéb működési célú kiadások | C98: 12700951 | D98: 23793251 | E98: 18212774
A99: 1.6. | B99: - az 1.5-ből: - Előző évi elszámolásból származó befizetések
A100: 1.7. | B100: - Törvényi előíráson alapuló befizetések
A101: 1.8. | B101: - Elvonások és befizetések | D101: 3280000 | E101: 2126000
A102: 1.9. | B102: - Garancia- és kezességvállalásból kifizetés ÁH-n belülre
A103: 1.10. | B103: -Visszatérítendő támogatások, kölcsönök nyújtása ÁH-n belülre
A104: 1.11. | B104: - Visszatérítendő támogatások, kölcsönök törlesztése ÁH-n belülre
A105: 1.12. | B105: - Egyéb működési célú támogatások ÁH-n belülre | C105: 11197000 | D105: 12632667 | E105: 12632188
A106: 1.13. | B106: - Garancia és kezességvállalásból kifizetés ÁH-n kívülre
A107: 1.14. | B107: - Visszatérítendő támogatások, kölcsönök nyújtása ÁH-n kívülre
A108: 1.15. | B108: - Árkiegészítések, ártámogatások
A109: 1.16. | B109: - Kamattámogatások
A110: 1.17. | B110: - Egyéb működési célú támogatások államháztartáson kívülre | C110: 1500000 | D110: 7868659 | E110: 2301584
A111: 1.18. | B111: Tartalékok | C111: 3951 | D111: 11925
A112: 1.19. | B112: - az 1.18-ból: - Általános tartalék | C112: 3951 | D112: 11925
A113: 1.20. | B113: - Céltartalék
A114: 2. | B114: Felhalmozási költségvetés kiadásai (2.1.+2.3.+2.5.) | C114: =+C115+C117+C119 -> 14397408 | D114: =+D115+D117+D119 -> 28101345 | E114: =+E115+E117+E119 -> 17068510
A115: 2.1. | B115: Beruházások | C115: 4627664 | D115: 4560600 | E115: 1920184
A116: 2.2. | B116: 2.1.-ből EU-s forrásból megvalósuló beruházás
A117: 2.3. | B117: Felújítások | C117: 9769744 | D117: 23540745 | E117: 15148326
A118: 2.4. | B118: 2.3.-ból EU-s forrásból megvalósuló felújítás
A119: 2.5. | B119: Egyéb felhalmozási kiadások
A120: 2.6. | B120: 2.5.-ből - Garancia- és kezességvállalásból kifizetés ÁH-n belülre
A121: 2.7. | B121: - Visszatérítendő támogatások, kölcsönök nyújtása ÁH-n belülre
A122: 2.8. | B122: - Visszatérítendő támogatások, kölcsönök törlesztése ÁH-n belülre
A123: 2.9. | B123: - Egyéb felhalmozási célú támogatások ÁH-n belülre
A124: 2.10. | B124: - Garancia- és kezességvállalásból kifizetés ÁH-n kívülre
A125: 2.11. | B125: - Visszatérítendő támogatások, kölcsönök nyújtása ÁH-n kívülre
A126: 2.12. | B126: - Lakástámogatás
A127: 2.13. | B127: - Egyéb felhalmozási célú támogatások államháztartáson kívülre
A128: 3. | B128: KÖLTSÉGVETÉSI KIADÁSOK ÖSSZESEN (1+2) | C128: =+C93+C114 -> 104905541 | D128: =+D93+D114 -> 149045709 | E128: =+E93+E114 -> 121749426
A129: 4. | B129: Hitel-, kölcsöntörlesztés államháztartáson kívülre (4.1. + … + 4.3.) | C129: =+C130+C131+C132 -> 0 | D129: =+D130+D131+D132 -> 0 | E129: =+E130+E131+E132 -> 0
A130: 4.1. | B130: Hosszú lejáratú hitelek, kölcsönök törlesztése pénzügyi vállalkozásnak
A131: 4.2. | B131: Likviditási célú hitelek, kölcsönök törlesztése pénzügyi vállalkozásnak
A132: 4.3. | B132: Rövid lejáratú hitelek, kölcsönök törlesztése pénzügyi vállalkozásnak
A133: 5. | B133: Belföldi értékpapírok kiadásai (5.1. + … + 5.6.) | C133: =SUM(C134:C139) -> 0 | D133: =SUM(D134:D139) -> 0
A134: 5.1. | B134: Forgatási célú belföldi értékpapírok vásárlása
A135: 5.2. | B135: Befektetési célú belföldi értékpapírok vásárlása
A136: 5.3. | B136: Kincstárjegyek beváltása
A137: 5.4. | B137: Éven belüli lejáratú belföldi értékpapírok beváltása
A138: 5.5. | B138: Belföldi kötvények beváltása
A139: 5.6. | B139: Éven túli lejáratú belföldi értékpapírok beváltása
A140: 6. | B140: Belföldi finanszírozás kiadásai (6.1. + … + 6.4.) | C140: =+C141+C142+C143+C144 -> 0 | D140: =+D141+D142+D143+D144 -> 1203622 | E140: =+E141+E142+E143+E144 -> 1203622
A141: 6.1. | B141: Államháztartáson belüli megelőlegezések folyósítása
A142: 6.2. | B142: Államháztartáson belüli megelőlegezések visszafizetése | D142: 1203622 | E142: 1203622
A143: 6.3. | B143: Pénzeszközök lekötött betétként elhelyezése
A144: 6.4. | B144: Pénzügyi lízing kiadásai
A145: 7. | B145: Külföldi finanszírozás kiadásai (7.1. + … + 7.5.) | C145: =SUM(C146:C150) -> 0 | D145: =SUM(D146:D150) -> 0
A146: 7.1. | B146: Forgatási célú külföldi értékpapírok vásárlása
A147: 7.2. | B147: Befektetési célú külföldi értékpapírok vásárlása
A148: 7.3. | B148: Külföldi értékpapírok beváltása
A149: 7.4. | B149: Hitelek, kölcsönök törlesztése külföldi kormányoknak nemz. Szervezeteknek
A150: 7.5. | B150: Hitelek, kölcsönök törlesztése külföldi pénzintézeteknek
A151: 8. | B151: Adóssághoz nem kapcsolódó származékos ügyletek
A152: 9. | B152: Váltókiadások
A153: 10. | B153: FINANSZÍROZÁSI KIADÁSOK ÖSSZESEN: (4.+…+9.) | C153: =+C129+C133+C140+C145+C151+C152 -> 0 | D153: =+D129+D133+D140+D145+D151+D152 -> 1203622 | E153: =+E129+E133+E140+E145+E151+E152 -> 1203622
A154: 11. | B154: KIADÁSOK ÖSSZESEN: (3.+10.) | C154: =+C128+C153 -> 104905541 | D154: =+D128+D153 -> 150249331 | E154: =+E128+E153 -> 122953048
A156: KÖLTSÉGVETÉSI, FINANSZÍROZÁSI BEVÉTELEK ÉS KIADÁSOK EGYENLEGE
A157: 3. sz. táblázat
A158: 1 | B158: Költségvetési hiány, többlet ( költségvetési bevételek 9. sor - költségvetési kiadások 3. sor) (+/-) | C158: =+C62-C128 -> -11455631 | D158: =+D62-D128 -> -13246123 | E158: =+E62-E128 -> -1596437
A159: 2. | B159: Finanszírozási bevételek, kiadások egyenlege (finanszírozási bevételek 17. sor - finanszírozási kiadások 10. sor) (+/-) | C159: =+C86-C153 -> 11455631 | D159: =+D86-D153 -> 13246123 | E159: =+E86-E153 -> 14667919

Sheet 1.3.sz.mell.önként.
A1: B E V É T E L E K
A2: 1. sz. táblázat | E2: Ezer forintban
A3: Sor- szám | B3: Bevételi jogcím | C3: =+CONCATENATE(LEFT(ÖSSZEFÜGGÉSEK!A5,4),". évi eredeti előirányzat") -> 2016. évi eredeti előirányzat | D3: =+CONCATENATE(LEFT(ÖSSZEFÜGGÉSEK!B5,4),"2015 évi módosított előirányzat") -> 2015 évi módosított előirányzat | E3: Teljesített
A4: A | B4: B | C4: C | D4: D | E4: E
A5: 1. | B5: Önkormányzat működési támogatásai (1.1.+…+.1.6.) | C5: =+C6+C7+C8+C9+C10+C11 -> 0 | D5: =+D6+D7+D8+D9+D10+D11 -> 0
A6: 1.1. | B6: Helyi önkormányzatok működésének általános támogatása
A7: 1.2. | B7: Önkormányzatok egyes köznevelési feladatainak támogatása
A8: 1.3. | B8: Önkormányzatok szociális és gyermekjóléti feladatainak támogatása
A9: 1.4. | B9: Önkormányzatok kulturális feladatainak támogatása
A10: 1.5. | B10: Működési célú kvi támogatások és kiegészítő támogatások
A11: 1.6. | B11: Elszámolásból származó bevételek
A12: 2. | B12: Működési célú támogatások államháztartáson belülről (2.1.+…+.2.5.) | C12: =+C13+C14+C15+C16+C17 -> 0 | D12: =+D13+D14+D15+D16+D17 -> 0
A13: 2.1. | B13: Elvonások és befizetések bevételei
A14: 2.2. | B14: Működési célú garancia- és kezességvállalásból megtérülések
A15: 2.3. | B15: Működési célú visszatérítendő támogatások, kölcsönök visszatérülése
A16: 2.4. | B16: Működési célú visszatérítendő támogatások, kölcsönök igénybevétele
A17: 2.5. | B17: Egyéb működési célú támogatások bevételei
A18: 2.6. | B18: 2.5.-ből EU-s támogatás
A19: 3. | B19: Felhalmozási célú támogatások államháztartáson belülről (3.1.+…+3.5.) | C19: =+C20+C21+C22+C23+C24 -> 0 | D19: =+D20+D21+D22+D23+D24 -> 0
A20: 3.1. | B20: Felhalmozási célú önkormányzati támogatások
A21: 3.2. | B21: Felhalmozási célú garancia- és kezességvállalásból megtérülések
A22: 3.3. | B22: Felhalmozási célú visszatérítendő támogatások, kölcsönök visszatérülése
A23: 3.4. | B23: Felhalmozási célú visszatérítendő támogatások, kölcsönök igénybevétele
A24: 3.5. | B24: Egyéb felhalmozási célú támogatások bevételei
A25: 3.6. | B25: 3.5.-ből EU-s támogatás
A26: 4. | B26: Közhatalmi bevételek (4.1.+4.2.+4.3.+4.4.) | C26: =+C27+C31+C32+C33 -> 0 | D26: =+D27+D31+D32+D33 -> 0 | E26: =+E27+E31+E32+E33 -> 0
A27: 4.1. | B27: Helyi adók (4.1.1.+...+4.1.3.) | C27: =+C28+C29+C30 -> 0 | D27: =+D28+D29+D30 -> 0 | E27: =+E28+E29+E30 -> 0
A28: 4.1.1. | B28: - Vagyoni típusú adók
A29: 4.1.2. | B29: - Termékek és szolgáltatások adói
A30: 4.1.3. | B30: - Értékesítési és forgalmi adók (iparűzési adó)
A31: 4.2. | B31: Gépjárműadó
A32: 4.3. | B32: Egyéb áruhasználati és szolgáltatási adók
A33: 4.4. | B33: Egyéb közhatalmi bevételek
A34: 5. | B34: Működési bevételek (5.1.+…+ 5.11.) | C34: =SUM(C35:C45) -> 0 | D34: =SUM(D35:D45) -> 0
A35: 5.1. | B35: Készletértékesítés ellenértéke
A36: 5.2. | B36: Szolgáltatások ellenértéke
A37: 5.3. | B37: Közvetített szolgáltatások értéke
A38: 5.4. | B38: Tulajdonosi bevételek
A39: 5.5. | B39: Ellátási díjak
A40: 5.6. | B40: Kiszámlázott általános forgalmi adó
A41: 5.7. | B41: Általános forgalmi adó visszatérítése
A42: 5.8. | B42: Kamatbevételek
A43: 5.9. | B43: Egyéb pénzügyi műveletek bevételei
A44: 5.10. | B44: Biztosító által fizetett kártérítés
A45: 5.11. | B45: Egyéb működési bevételek
A46: 6. | B46: Felhalmozási bevételek (6.1.+…+6.5.) | C46: =SUM(C47:C51) -> 0 | D46: =SUM(D47:D51) -> 0
A47: 6.1. | B47: Immateriális javak értékesítése
A48: 6.2. | B48: Ingatlanok értékesítése
A49: 6.3. | B49: Egyéb tárgyi eszközök értékesítése
A50: 6.4. | B50: Részesedések értékesítése
A51: 6.5. | B51: Részesedések megszűnéséhez kapcsolódó bevételek
A52: 7. | B52: Működési célú átvett pénzeszközök (7.1. + … + 7.3.) | C52: =SUM(C53:C55) -> 0 | D52: =SUM(D53:D55) -> 0
A53: 7.1. | B53: Működési célú garancia- és kezességvállalásból megtérülések ÁH-n kívülről
A54: 7.2. | B54: Működési célú visszatérítendő támogatások, kölcsönök visszatér. ÁH-n kívülről
A55: 7.3. | B55: Egyéb működési célú átvett pénzeszköz
A56: 7.4. | B56: 7.3.-ból EU-s támogatás (közvetlen)
A57: 8. | B57: Felhalmozási célú átvett pénzeszközök (8.1.+8.2.+8.3.) | C57: =SUM(C58:C60) -> 0 | D57: =SUM(D58:D60) -> 0
A58: 8.1. | B58: Felhalm. célú garancia- és kezességvállalásból megtérülések ÁH-n kívülről
A59: 8.2. | B59: Felhalm. célú visszatérítendő támogatások, kölcsönök visszatér. ÁH-n kívülről
A60: 8.3. | B60: Egyéb felhalmozási célú átvett pénzeszköz
A61: 8.4. | B61: 8.3.-ból EU-s támogatás (közvetlen)
A62: 9. | B62: KÖLTSÉGVETÉSI BEVÉTELEK ÖSSZESEN: (1+…+8) | C62: =+C5+C12+C19+C26+C34+C46+C52+C57 -> 0 | D62: =+D5+D12+D19+D26+D34+D46+D52+D57 -> 0 | E62: =+E5+E12+E19+E26+E34+E46+E52+E57 -> 0
A63: 10. | B63: Hitel-, kölcsönfelvétel államháztartáson kívülről (10.1.+10.3.) | C63: =SUM(C64:C66) -> 0 | D63: =SUM(D64:D66) -> 0
A64: 10.1. | B64: Hosszú lejáratú hitelek, kölcsönök felvétele
A65: 10.2. | B65: Likviditási célú hitelek, kölcsönök felvétele pénzügyi vállalkozástól
A66: 10.3. | B66: Rövid lejáratú hitelek, kölcsönök felvétele
A67: 11. | B67: Belföldi értékpapírok bevételei (11.1. +…+ 11.4.) | C67: =SUM(C68:C71) -> 0 | D67: =SUM(D68:D71) -> 0
A68: 11.1. | B68: Forgatási célú belföldi értékpapírok beváltása, értékesítése
A69: 11.2. | B69: Forgatási célú belföldi értékpapírok kibocsátása
A70: 11.3. | B70: Befektetési célú belföldi értékpapírok beváltása, értékesítése
A71: 11.4. | B71: Befektetési célú belföldi értékpapírok kibocsátása
A72: 12. | B72: Maradvány igénybevétele (12.1. + 12.2.) | C72: =SUM(C73:C74) -> 0 | D72: =SUM(D73:D74) -> 0
A73: 12.1. | B73: Előző év költségvetési maradványának igénybevétele
A74: 12.2. | B74: Előző év vállalkozási maradványának igénybevétele
A75: 13. | B75: Belföldi finanszírozás bevételei (13.1. + … + 13.3.) | C75: =SUM(C76:C78) -> 0 | D75: =SUM(D76:D78) -> 0
A76: 13.1. | B76: Államháztartáson belüli megelőlegezések
A77: 13.2. | B77: Államháztartáson belüli megelőlegezések törlesztése
A78: 13.3. | B78: Betétek megszüntetése
A79: 14. | B79: Külföldi finanszírozás bevételei (14.1.+…14.4.) | C79: =SUM(C80:C83) -> 0 | D79: =SUM(D80:D83) -> 0
A80: 14.1. | B80: Forgatási célú külföldi értékpapírok beváltása, értékesítése
A81: 14.2. | B81: Befektetési célú külföldi értékpapírok beváltása, értékesítése
A82: 14.3. | B82: Külföldi értékpapírok kibocsátása
A83: 14.4. | B83: Külföldi hitelek, kölcsönök felvétele
A84: 15. | B84: Váltóbevételek
A85: 16. | B85: Adóssághoz nem kapcsolódó származékos ügyletek bevételei
A86: 17. | B86: FINANSZÍROZÁSI BEVÉTELEK ÖSSZESEN: (10. + … +16.) | C86: =+C63+C67+C72+C75+C79+C85+C84 -> 0 | D86: =+D63+D67+D72+D75+D79+D85+D84 -> 0
A87: 18. | B87: KÖLTSÉGVETÉSI ÉS FINANSZÍROZÁSI BEVÉTELEK ÖSSZESEN: (9+17) | C87: =+C62+C86 -> 0 | D87: =+D62+D86 -> 0 | E87: =+E62+E86 -> 0
A89: K I A D Á S O K
A90: 2. sz. táblázat | E90: Ezer forintban
A91: Sor- szám | B91: Kiadási jogcímek | C91: =+C3 -> 2016. évi eredeti előirányzat | D91: =+D3 -> 2015 évi módosított előirányzat | E91: Teljesített
A92: A | B92: B | C92: C | D92: D
A93: 1. | B93: Működési költségvetés kiadásai (1.1+…+1.5.+1.18.) | C93: =C94+C95+C96+C97+C98+C111 -> 2450 | D93: =D94+D95+D96+D97+D98+D111 -> 2450 | E93: =E94+E95+E96+E97+E98+E111 -> 1500
A94: 1.1. | B94: Személyi juttatások
A95: 1.2. | B95: Munkaadókat terhelő járulékok és szociális hozzájárulási adó
A96: 1.3. | B96: Dologi kiadások
A97: 1.4. | B97: Ellátottak pénzbeli juttatásai
A98: 1.5 | B98: Egyéb működési célú kiadások | C98: 2450 | D98: 2450 | E98: 1500
A99: 1.6. | B99: - az 1.5-ből: - Előző évi elszámolásból származó befizetések
A100: 1.7. | B100: - Törvényi előíráson alapuló befizetések
A101: 1.8. | B101: - Elvonások és befizetések
A102: 1.9. | B102: - Garancia- és kezességvállalásból kifizetés ÁH-n belülre
A103: 1.10. | B103: -Visszatérítendő támogatások, kölcsönök nyújtása ÁH-n belülre
A104: 1.11. | B104: - Visszatérítendő támogatások, kölcsönök törlesztése ÁH-n belülre
A105: 1.12. | B105: - Egyéb működési célú támogatások ÁH-n belülre
A106: 1.13. | B106: - Garancia és kezességvállalásból kifizetés ÁH-n kívülre
A107: 1.14. | B107: - Visszatérítendő támogatások, kölcsönök nyújtása ÁH-n kívülre
A108: 1.15. | B108: - Árkiegészítések, ártámogatások
A109: 1.16. | B109: - Kamattámogatások
A110: 1.17. | B110: - Egyéb működési célú támogatások államháztartáson kívülre | C110: 2450 | D110: 2450 | E110: 1500
A111: 1.18. | B111: Tartalékok
A112: 1.19. | B112: - az 1.18-ból: - Általános tartalék
A113: 1.20. | B113: - Céltartalék
A114: 2. | B114: Felhalmozási költségvetés kiadásai (2.1.+2.3.+2.5.) | C114: =+C115+C117+C119 -> 0 | D114: =+D115+D117+D119 -> 0
A115: 2.1. | B115: Beruházások
A116: 2.2. | B116: 2.1.-ből EU-s forrásból megvalósuló beruházás
A117: 2.3. | B117: Felújítások
A118: 2.4. | B118: 2.3.-ból EU-s forrásból megvalósuló felújítás
A119: 2.5. | B119: Egyéb felhalmozási kiadások
A120: 2.6. | B120: 2.5.-ből - Garancia- és kezességvállalásból kifizetés ÁH-n belülre
A121: 2.7. | B121: - Visszatérítendő támogatások, kölcsönök nyújtása ÁH-n belülre
A122: 2.8. | B122: - Visszatérítendő támogatások, kölcsönök törlesztése ÁH-n belülre
A123: 2.9. | B123: - Egyéb felhalmozási célú támogatások ÁH-n belülre
A124: 2.10. | B124: - Garancia- és kezességvállalásból kifizetés ÁH-n kívülre
A125: 2.11. | B125: - Visszatérítendő támogatások, kölcsönök nyújtása ÁH-n kívülre
A126: 2.12. | B126: - Lakástámogatás
A127: 2.13. | B127: - Egyéb felhalmozási célú támogatások államháztartáson kívülre
A128: 3. | B128: KÖLTSÉGVETÉSI KIADÁSOK ÖSSZESEN (1+2) | C128: =+C93+C114 -> 2450 | D128: =+D93+D114 -> 2450 | E128: =+E93+E114 -> 1500
A129: 4. | B129: Hitel-, kölcsöntörlesztés államháztartáson kívülre (4.1. + … + 4.3.) | C129: =+C130+C131+C132 -> 0 | D129: =+D130+D131+D132 -> 0
A130: 4.1. | B130: Hosszú lejáratú hitelek, kölcsönök törlesztése pénzügyi vállalkozásnak
A131: 4.2. | B131: Likviditási célú hitelek, kölcsönök törlesztése pénzügyi vállalkozásnak
A132: 4.3. | B132: Rövid lejáratú hitelek, kölcsönök törlesztése pénzügyi vállalkozásnak
A133: 5. | B133: Belföldi értékpapírok kiadásai (5.1. + … + 5.6.) | C133: =SUM(C134:C139) -> 0 | D133: =SUM(D134:D139) -> 0
A134: 5.1. | B134: Forgatási célú belföldi értékpapírok vásárlása
A135: 5.2. | B135: Befektetési célú belföldi értékpapírok vásárlása
A136: 5.3. | B136: Kincstárjegyek beváltása
A137: 5.4. | B137: Éven belüli lejáratú belföldi értékpapírok beváltása
A138: 5.5. | B138: Belföldi kötvények beváltása
A139: 5.6. | B139: Éven túli lejáratú belföldi értékpapírok beváltása
A140: 6. | B140: Belföldi finanszírozás kiadásai (6.1. + … + 6.4.) | C140: =+C141+C142+C143+C144 -> 0 | D140: =+D141+D142+D143+D144 -> 0
A141: 6.1. | B141: Államháztartáson belüli megelőlegezések folyósítása
A142: 6.2. | B142: Államháztartáson belüli megelőlegezések visszafizetése
A143: 6.3. | B143: Pénzeszközök lekötött betétként elhelyezése
A144: 6.4. | B144: Pénzügyi lízing kiadásai
A145: 7. | B145: Külföldi finanszírozás kiadásai (7.1. + … + 7.5.) | C145: =SUM(C146:C150) -> 0 | D145: =SUM(D146:D150) -> 0
A146: 7.1. | B146: Forgatási célú külföldi értékpapírok vásárlása
A147: 7.2. | B147: Befektetési célú külföldi értékpapírok vásárlása
A148: 7.3. | B148: Külföldi értékpapírok beváltása
A149: 7.4. | B149: Hitelek, kölcsönök törlesztése külföldi kormányoknak nemz. Szervezeteknek
A150: 7.5. | B150: Hitelek, kölcsönök törlesztése külföldi pénzintézeteknek
A151: 8. | B151: Adóssághoz nem kapcsolódó származékos ügyletek
A152: 9. | B152: Váltókiadások
A153: 10. | B153: FINANSZÍROZÁSI KIADÁSOK ÖSSZESEN: (4.+…+9.) | C153: =+C129+C133+C140+C145+C151+C152 -> 0 | D153: =+D129+D133+D140+D145+D151+D152 -> 0
A154: 11. | B154: KIADÁSOK ÖSSZESEN: (3.+10.) | C154: =+C128+C153 -> 2450 | D154: =+D128+D153 -> 2450 | E154: =+E128+E153 -> 1500
A156: KÖLTSÉGVETÉSI, FINANSZÍROZÁSI BEVÉTELEK ÉS KIADÁSOK EGYENLEGE
A157: 3. sz. táblázat | E157: Ezer forintban
A158: 1 | B158: Költségvetési hiány, többlet ( költségvetési bevételek 9. sor - költségvetési kiadások 3. sor) (+/-) | C158: =+C62-C128 -> -2450 | D158: =+D62-D128 -> -2450
A159: 2. | B159: Finanszírozási bevételek, kiadások egyenlege (finanszírozási bevételek 17. sor - finanszírozási kiadások 10. sor) (+/-) | C159: =+C86-C153 -> 0 | D159: =+D86-D153 -> 0

Sheet 2.1.sz.mell
B1: I. Működési célú bevételek és kiadások mérlege (Önkormányzati szinten) | J1: 2.1. melléklet az... /2017.(..) önkormányzati rendelethez
A3: Sor- szám | B3: Bevételek | F3: Kiadások
B4: Megnevezés | C4: =+'1.1.sz.mell.össz.'!C3 -> 2016.évi eredeti előirányzat | D4: 2016.évi módosított előirányzat | E4: Teljesített | F4: Megnevezés | G4: =+C4 -> 2016.évi eredeti előirányzat | H4: 2016.évi módosított előirányzat | I4: Teljesített
A5: A | B5: B | C5: C | D5: D | E5: E | F5: F | G5: G | H5: H | I5: I
A6: 1. | B6: Önkormányzatok működési támogatásai | C6: 40111414 | D6: 49341802 | E6: 36649712 | F6: Személyi juttatások | G6: 22318879 | H6: 29629833 | I6: 29610129
A7: 2. | B7: Működési célú támogatások államháztartáson belülről | D7: 14252082 | E7: 19278673 | F7: Munkaadókat terhelő járulékok és szociális hozzájárulási adó | G7: 4791948 | H7: 7578279 | I7: 7531579
A8: 3. | B8: 2.-ból EU-s támogatás | F8: Dologi kiadások | G8: 42696280 | H8: 54989901 | I8: 44374234
A9: 4. | B9: Közhatalmi bevételek | C9: 32430000 | D9: 45370312 | E9: 34342442 | F9: Ellátottak pénzbeli juttatásai | G9: 8000000 | H9: 4953100 | I9: 4952200
A10: 5. | B10: Működési bevételek | C10: 19908496 | D10: 25325467 | E10: 14120157 | F10: Egyéb működési célú kiadások | G10: 12700951 | H10: 23793251 | I10: 18212774
A11: 6. | B11: Működési célú átvett pénzeszközök | D11: 64310 | E11: 64310 | F11: Tartalékok | H11: 11925
A12: 7. | B12: 6.-ból EU-s támogatás (közvetlen)
A13: 8.
A14: 9.
A15: 10.
A16: 11.
A17: 12.
A18: 13. | B18: Költségvetési bevételek összesen (1.+2.+4.+5.+6.+8.+…+12.) | C18: =SUM(C6:C17) -> 92449910 | D18: =SUM(D6:D17) -> 134353973 | E18: =SUM(E6:E17) -> 104455294 | F18: Költségvetési kiadások összesen (1.+...+12.) | G18: =SUM(G6:G17) -> 90508058 | H18: =SUM(H6:H17) -> 120956289 | I18: =SUM(I6:I17) -> 104680916
A19: 14. | B19: Hiány belső finanszírozásának bevételei (15.+…+18. ) | C19: =+C20+C21+C22+C23 -> 11455631 | D19: =+D20+D21+D22+D23 -> 14399745 | E19: =+E20+E21+E22+E23 -> 14399745 | F19: Értékpapír vásárlása, visszavásárlása
A20: 15. | B20: Költségvetési maradvány igénybevétele | C20: 11455631 | D20: 14399745 | E20: 14399745 | F20: Likviditási célú hitelek törlesztése
A21: 16. | B21: Vállalkozási maradvány igénybevétele | F21: Rövid lejáratú hitelek törlesztése
A22: 17. | B22: Betét visszavonásából származó bevétel | F22: Hosszú lejáratú hitelek törlesztése
A23: 18. | B23: Egyéb belső finanszírozási bevételek | F23: Kölcsön törlesztése
A24: 19. | B24: Hiány külső finanszírozásának bevételei (20.+…+21.) | C24: =+C25+C26 -> 0 | D24: =+D25+D26 -> 0 | E24: =+E25+E26 -> 0 | F24: Forgatási célú belföldi, külföldi értékpapírok vásárlása
A25: 20. | B25: Likviditási célú hitelek, kölcsönök felvétele | F25: Pénzeszközök lekötött betétként elhelyezése
A26: 21. | B26: Értékpapírok bevételei | F26: Adóssághoz nem kapcsolódó származékos ügyletek
A27: 22. | B27: Váltóbevételek | F27: Váltókiadások
A28: 23. | B28: Adóssághoz nem kapcsolódó származékos ügyletek bevételei | F28: Államháztartáson belüli megelőlegezések visszafizetése | H28: 1203622 | I28: 1203600
A29: 24. | B29: Működési célú finanszírozási bevételek összesen (14.+19.+22.+23.) | C29: =+C19+C24+C27+C28 -> 11455631 | D29: =+D19+D24+D27+D28 -> 14399745 | E29: =+E19+E24+E27+E28 -> 14399745 | F29: Működési célú finanszírozási kiadások összesen (14.+...+23.) | G29: =SUM(G19:G28) -> 0 | H29: =SUM(H19:H28) -> 1203622 | I29: =SUM(I19:I28) -> 1203600
A30: 25. | B30: BEVÉTEL ÖSSZESEN (13.+24.) | C30: =+C18+C29 -> 103905541 | D30: =+D18+D29 -> 148753718 | E30: =+E18+E29 -> 118855039 | F30: KIADÁSOK ÖSSZESEN (13.+24.) | G30: =+G18+G29 -> 90508058 | H30: =+H18+H29 -> 122159911 | I30: =+I18+I29 -> 105884516
A31: 26. | B31: Költségvetési hiány: | C31: =IF(C18-G18<0,G18-C18,"-") -> - | D31: =IF(D18-H18<0,H18-D18,"-") -> - | F31: Költségvetési többlet: | G31: =IF(C18-G18>0,C18-G18,"-") -> 1941852 | H31: =IF(D18-H18>0,D18-H18,"-") -> 13397684 | I31: 12970532
A32: 27. | B32: Tárgyévi hiány: | C32: =IF(C18+C29-G30<0,G30-(C18+C29),"-") -> - | D32: =IF(D18+D29-H30<0,H30-(D18+D29),"-") -> - | F32: Tárgyévi többlet: | G32: =IF(C18+C29-G30>0,C18+C29-G30,"-") -> 13397483 | H32: =IF(D18+D29-H30>0,D18+D29-H30,"-") -> 26593807

Sheet 2.2.sz.mell
B1: II. Felhalmozási célú bevételek és kiadások mérlege (Önkormányzati szinten) | J1: 2.2. melléklet az .../2017. (…) önkormányzati rendelethez
A3: Sor- szám | B3: Bevételek | F3: Kiadások
B4: Megnevezés | C4: =+'2.1.sz.mell '!C4 -> 2016.évi eredeti előirányzat | D4: 2016.évi módosított előirányzat | E4: Teljesített | F4: Megnevezés | G4: =+'2.1.sz.mell '!C4 -> 2016.évi eredeti előirányzat | H4: 2016.évi módosított előirányzat | I4: Teljesített
A5: A | B5: B | C5: C | D5: D | E5: E | F5: F | G5: G | H5: H | I5: I
A6: 1. | B6: Felhalmozási célú támogatások államháztartáson belülről | D6: 14252082 | E6: 14252082 | F6: Beruházások | G6: 4627664 | H6: 4560600 | I6: 1920184
A7: 2. | B7: 1.-ből EU-s támogatás | F7: 1.-ből EU-s forrásból megvalósuló beruházás
A8: 3. | B8: Felhalmozási bevételek | F8: Felújítások | G8: 9769744 | H8: 23540745 | I8: 15148326
A9: 4. | B9: Felhalmozási célú átvett pénzeszközök átvétele | C9: 1000000 | D9: 1445613 | E9: 1445613 | F9: 3.-ból EU-s forrásból megvalósuló felújítás
A10: 5. | B10: 4.-ből EU-s támogatás (közvetlen) | F10: Egyéb felhalmozási kiadások
A11: 6. | B11: Egyéb felhalmozási célú bevételek | E11: 1421796
A12: 7.
A13: 8.
A14: 9.
A15: 10.
A16: 11. | F16: Tartalékok
A17: 12. | B17: Költségvetési bevételek összesen: (1.+3.+4.+6.+…+11.) | C17: =+C6+C8+C9+C11+C12+C13+C14+C15+C16 -> 1000000 | D17: =+D6+D8+D9+D11+D12+D13+D14+D15+D16 -> 15697695 | E17: =+E6+E8+E9+E11+E12+E13+E14+E15+E16 -> 17119491 | F17: Költségvetési kiadások összesen: (1.+3.+5.+...+11.) | G17: =+G6+G8+G10+G11+G12+G13+G14+G15+G16 -> 14397408 | H17: =+H6+H8+H10+H11+H12+H13+H14+H15+H16 -> 28101345 | I17: =+I6+I8+I10+I11+I12+I13+I14+I15+I16 -> 17068510
A18: 13. | B18: Hiány belső finanszírozás bevételei ( 14+…+18) | C18: =+C19+C20+C21+C22+C23 -> 0 | D18: 50000 | E18: 50000 | F18: Értékpapír vásárlása, visszavásárlása
A19: 14. | B19: Költségvetési maradvány igénybevétele | F19: Hitelek törlesztése
A20: 15. | B20: Vállalkozási maradvány igénybevétele | F20: Rövid lejáratú hitelek törlesztése | I20: 11383
A21: 16. | B21: Betét visszavonásából származó bevétel | F21: Hosszú lejáratú hitelek törlesztése
A22: 17. | B22: Értékpapír értékesítése | F22: Kölcsön törlesztése
A23: 18. | B23: Egyéb belső finanszírozási bevételek | D23: 50000 | E23: 50000 | F23: Befektetési célú belföldi, külföldi értékpapírok vásárlása
A24: 19. | B24: Hiány külső finanszírozásának bevételei (20+…+24 ) | C24: =+C25+C26+C27+C28+C29 -> 0 | D24: =+D25+D26+D27+D28+D29 -> 0 | E24: =+E25+E26+E27+E28+E29 -> 0 | F24: Betét elhelyezése
A25: 20. | B25: Hosszú lejáratú hitelek, kölcsönök felvétele | F25: Pénzügyi lízing kiadásai
A26: 21. | B26: Likviditási célú hitelek, kölcsönök felvétele
A27: 22. | B27: Rövid lejáratú hitelek, kölcsönök felvétele
A28: 23. | B28: Értékpapírok kibocsátása
A29: 24. | B29: Egyéb külső finanszírozási bevételek
A30: 25. | B30: Felhalmozási célú finanszírozási bevételek összesen (13.+19.) | C30: =+C18+C24 -> 0 | D30: =+D18+D24 -> 50000 | E30: =+E18+E24 -> 50000 | F30: Felhalmozási célú finanszírozási kiadások összesen (13.+...+24.) | G30: =SUM(G18:G29) -> 0 | H30: =SUM(H18:H29) -> 0 | I30: =SUM(I18:I29) -> 11383
A31: 26. | B31: BEVÉTEL ÖSSZESEN (12+25) | C31: =+C17+C30 -> 1000000 | D31: =+D17+D30 -> 15747695 | E31: =E17+E30 -> 17169491 | F31: KIADÁSOK ÖSSZESEN (12+25) | G31: =+G17+G30 -> 14397408 | H31: =+H17+H30 -> 28101345 | I31: =+I17+I30 -> 17079893
A32: 27. | B32: Költségvetési hiány: | C32: =IF(C17-G17<0,G17-C17,"-") -> 13397408 | D32: =IF(D17-H17<0,H17-D17,"-") -> 12403650 | E32: =IF(E17-I17<0,I17-E17,"-") -> - | F32: Költségvetési többlet: | G32: =IF(C17-G17>0,C17-G17,"-") -> - | H32: =IF(D17-H17>0,D17-H17,"-") -> - | I32: 89598
A33: 28. | B33: Tárgyévi hiány: | C33: =IF(C17+C30-G26<0,G26-(C17+C30),"-") -> - | D33: =IF(D17+D30-H26<0,H26-(D17+D30),"-") -> - | F33: Tárgyévi többlet:
G34: 0

Sheet ELLENŐRZÉS-1.sz.2.a.sz.2.b.sz.
A1: Költségvetési rendelet űrlapjainak összefüggései: | E1: ELTÉRÉS
A4: =+ÖSSZEFÜGGÉSEK!A5 -> 2016. évi előirányzat BEVÉTELEK
A6: 1.1. sz. melléklet Bevételek táblázat C. oszlop 9 sora = | B6: =+'1.1.sz.mell.össz.'!C62 -> 93449910 | C6: 2.1. számú melléklet C. oszlop 13. sor + 2.2. számú melléklet C. oszlop 12. sor | D6: =+'2.1.sz.mell '!C18+'2.2.sz.mell '!C17 -> 93449910 | E6: =+B6-D6 -> 0
A7: 1.1. sz. melléklet Bevételek táblázat C. oszlop 17 sora = | B7: =+'1.1.sz.mell.össz.'!C86 -> 11455631 | C7: 2.1. számú melléklet C. oszlop 24. sor + 2.2. számú melléklet C. oszlop 25. sor | D7: =+'2.1.sz.mell '!C29+'2.2.sz.mell '!C30 -> 11455631 | E7: 0
A8: 1.1. sz. melléklet Bevételek táblázat C. oszlop 18 sora = | B8: =+'1.1.sz.mell.össz.'!C87 -> 104905541 | C8: 2.1. számú melléklet C. oszlop 25. sor + 2.2. számú melléklet C. oszlop 26. sor | D8: =+'2.1.sz.mell '!C30+'2.2.sz.mell '!C31 -> 104905541 | E8: 0
A11: =+ÖSSZEFÜGGÉSEK!A12 -> 2016. évi előirányzat KIADÁSOK
A13: 1.1. sz. melléklet Kiadások táblázat C. oszlop 3 sora = | B13: =+'1.1.sz.mell.össz.'!C128 -> 104905541 | C13: 2.1. számú melléklet E. oszlop 13. sor + 2.2. számú melléklet E. oszlop 12. sor | D13: =+'2.1.sz.mell '!G18+'2.2.sz.mell '!G17 -> 104905466 | E13: 75
A14: 1.1. sz. melléklet Kiadások táblázat C. oszlop 10 sora = | B14: =+'1.1.sz.mell.össz.'!C153 -> 0 | C14: 2.1. számú melléklet E. oszlop 24. sor + 2.2. számú melléklet E. oszlop 25. sor | D14: =+'2.1.sz.mell '!G29+'2.2.sz.mell '!G30 -> 0 | E14: 0
A15: 1.1. sz. melléklet Kiadások táblázat C. oszlop 11 sora = | B15: =+'1.1.sz.mell.össz.'!C154 -> 104905541 | C15: 2.1. számú melléklet E. oszlop 25. sor + 2.2. számú melléklet E. oszlop 26. sor | D15: =+'2.1.sz.mell '!G30+'2.2.sz.mell '!G31 -> 104905466 | E15: 75

Sheet 3.sz.mell.
A1: Sióagárd Község Önkormányzata adósságot keletkeztető ügyletekből és kezességvállalásokból fennálló kötelezettségei
E2: Ezer forintban !
A3: Sor-szám | B3: MEGNEVEZÉS | C3: Évek | F3: Összesen (F=C+D+E)
C4: =+LEFT(ÖSSZEFÜGGÉSEK!A5,4)+1 -> 2017 | D4: =+C4+1 -> 2018 | E4: =+D4+1 -> 2019
A5: A | B5: B | C5: C | D5: D | E5: E | F5: F
A6: 1. | F6: =SUM(C6:E6) -> 0
A7: 2. | F7: =SUM(C7:E7) -> 0
A8: 3. | F8: =SUM(C8:E8) -> 0
A9: 4. | F9: =SUM(C9:E9) -> 0
A10: 5. | F10: =SUM(C10:E10) -> 0
A11: 6. | B11: ÖSSZES KÖTELEZETTSÉG | C11: =SUM(C6:C10) -> 0 | D11: =SUM(D6:D10) -> 0 | E11: =SUM(E6:E10) -> 0 | F11: =SUM(F6:F10) -> 0

Sheet 4.sz.mell.
A1: Sióagárd Község Önkormányzata saját bevételeinek részletezése az adósságot keletkeztető ügyletből származó tárgyévi fizetési kötelezettség megállapításához
A3: Sor-szám | B3: Bevételi jogcímek | C3: =+'1.1.sz.mell.össz.'!C3 -> 2016.évi eredeti előirányzat | D3: =+'1.1.sz.mell.össz.'!D3 -> 2016.évi módosított előirányzat | E3: Teljesített
A4: A | B4: B | C4: C | D4: C
A5: 1. | B5: Helyi adóból és a települési adóból származó bevétel | C5: 27500000 | D5: 34427029 | E5: 29800753
A6: 2. | B6: Az önkormányzati vagyon és az önkormányzatot megillető vagyoni értékű jog értékesítéséből és hasznosításából származó bevétel | D6: 50000 | E6: 50000
A7: 3. | B7: Osztalék, koncessziós díj és hozambevétel
A8: 4. | B8: Tárgyi eszköz és az immateriális jószág, részvény, részesedés, vállalat értékesítéséből vagy privatizációból származó bevétel
A9: 5. | B9: Bírság-, pótlék- és díjbevétel | C9: 360000 | D9: 1123283 | E9: 194369
A10: 6. | B10: Kezesség-, illetve garanciavállalással kapcsolatos megtérülés
A11: SAJÁT BEVÉTELEK ÖSSZESEN* | C11: =SUM(C5:C10) -> 27860000 | D11: =SUM(D5:D10) -> 35600312 | E11: =SUM(E5:E10) -> 30045122
A12: *Az adósságot keletkeztető ügyletekhez történő hozzájárulás részletes szabályairól szóló 353/2011. (XII.31.) Korm. Rendelet 2.§ (1) bekezdése alapján.

Sheet 5.sz.mell.
A1: =+CONCATENATE("Sióagárd Község Önkormányzata ",CONCATENATE(LEFT(ÖSSZEFÜGGÉSEK!A5,4),". évi adósságot keletkeztető fejlesztési céljai")) -> Sióagárd Község Önkormányzata 2016. évi adósságot keletkeztető fejlesztési céljai
C2: Ezer forintban !
A3: Sor-szám | B3: Fejlesztési cél leírása | C3: Fejlesztés várható kiadása
A4: A | B4: B | C4: C
A5: 1.
A6: 2.
A7: 3.
A8: 4. | B8: ADÓSSÁGOT KELETKEZTETŐ ÜGYLETEK VÁRHATÓ EGYÜTTES ÖSSZEGE | C8: =SUM(C5:C7) -> 0

Sheet 6.sz.mell.
A1: Beruházási (felhalmozási) kiadások előirányzata beruházásonként
A3: Beruházás megnevezése | B3: Eredeti előirányzat | C3: Módosított előirányzat | D3: Teljesített
A4: A | B4: C | C4: D | D4: E
A23: ÖSSZESEN: | C23: =SUM(C5:C22) -> 0 | D23: =SUM(D5:D22) -> 0

Sheet 7.sz.mell.
A1: Felújítási kiadások előirányzata felújításonként
A3: Felújítás megnevezése | B3: Eredeti előirányzat | C3: =+'6.sz.mell.'!C3 -> Módosított előirányzat | D3: Teljesített
A4: A | B4: C | C4: D | D4: E
A5: Konyha felújítása | C5: 12921946 | D5: 12921946
A24: ÖSSZESEN: | B24: 3389 | C24: =SUM(C5:C23) -> 12921946 | D24: =SUM(D5:D23) -> 12921946

Sheet 8. sz. mell.
A2: EU-s projekt neve, azonosítója:
D3: Ezer forintban!
A4: Források | B4: =CONCATENATE((LEFT(ÖSSZEFÜGGÉSEK!A5,4)),".") -> 2016. | C4: =CONCATENATE((LEFT(ÖSSZEFÜGGÉSEK!A5,4))+1,".") -> 2017. | D4: =CONCATENATE((LEFT(ÖSSZEFÜGGÉSEK!A5,4))+1,". után") -> 2017. után | E4: Összesen
A5: Saját erő | E5: =SUM(B5:D5) -> 0
A6: - saját erőből központi támogatás | E6: 0
A7: EU-s forrás | E7: 0
A8: Társfinanszírozás | E8: 0
A9: Hitel | E9: 0
A10: Egyéb forrás | E10: 0
E11: 0
A12: Források összesen: | B12: =B5+SUM(B7:B11) -> 0 | C12: =C5+SUM(C7:C11) -> 0 | D12: =D5+SUM(D7:D11) -> 0 | E12: =E5+SUM(E7:E11) -> 0
A14: Kiadások, költségek | B14: =+B4 -> 2016. | C14: =+C4 -> 2017. | D14: =+D4 -> 2017. után | E14: Összesen
A15: Személyi jellegű | E15: =SUM(B15:D15) -> 0
A16: Beruházások, beszerzések | E16: 0
A17: Szolgáltatások igénybe vétele | E17: 0
A18: Adminisztratív költségek | E18: 0
E19: 0
E20: 0
E21: 0
A22: Összesen: | B22: =SUM(B15:B21) -> 0 | C22: =SUM(C15:C21) -> 0 | D22: =SUM(D15:D21) -> 0 | E22: =SUM(E15:E21) -> 0
A25: EU-s projekt neve, azonosítója:
D26: Ezer forintban!
A27: Források | B27: =+B14 -> 2016. | C27: =+C14 -> 2017. | D27: =+D14 -> 2017. után | E27: Összesen
A28: Saját erő | E28: =SUM(B28:D28) -> 0
A29: - saját erőből központi támogatás | E29: 0
A30: EU-s forrás | E30: 0
A31: Társfinanszírozás | E31: 0
A32: Hitel | E32: 0
A33: Egyéb forrás | E33: 0
E34: 0
A35: Források összesen: | B35: =B28+SUM(B30:B34) -> 0 | C35: =C28+SUM(C30:C34) -> 0 | D35: =D28+SUM(D30:D34) -> 0 | E35: =E28+SUM(E30:E34) -> 0
A37: Kiadások, költségek | B37: =+B27 -> 2016. | C37: =+C27 -> 2017. | D37: =+D27 -> 2017. után | E37: Összesen
A38: Személyi jellegű | E38: =SUM(B38:D38) -> 0
A39: Beruházások, beszerzések | E39: 0
A40: Szolgáltatások igénybe vétele | E40: 0
A41: Adminisztratív költségek | E41: 0
E42: 0
E43: 0
E44: 0
A45: Összesen: | B45: =SUM(B38:B44) -> 0 | C45: =SUM(C38:C44) -> 0 | D45: =SUM(D38:D44) -> 0 | E45: =SUM(E38:E44) -> 0
A47: =+CONCATENATE("Önkormányzaton kívüli EU-s projektekhez történő hozzájárulás ",LEFT(ÖSSZEFÜGGÉSEK!A5,4),". évi előirányzat") -> Önkormányzaton kívüli EU-s projektekhez történő hozzájárulás 2016. évi előirányzat
A49: Támogatott neve | D49: Hozzájárulás (E Ft)
A52: Összesen: | D52: =SUM(D50:E51) -> 0

Sheet 9.sz.mell
A1: Adatszolgáltatás az elismert tartozásállományról
A3: Költségvetési szerv neve: | C3: …………………………………
A5: Költségvetési szerv számlaszáma: | C5: …………………………………
A7: Éves eredeti kiadási előirányzat: …………… ezer Ft
A8: 30 napon túli elismert tartozásállomány összesen: ……………… Ft
A9: Sor-szám | B9: Tartozásállomány megnevezése | C9: 30 nap alatti állomány | D9: 30-60 nap közötti állomány | E9: 60 napon túli állomány | F9: Át-ütemezett | G9: Összesen:
A10: 1. | B10: Állammal szembeni tartozások | G10: =SUM(C10:F10) -> 0
A11: 2. | B11: Központi költségvetéssel szemben fennálló tartozás | G11: =SUM(C11:F11) -> 0
A12: 3. | B12: Elkülönített állami pénzalapokkal szembeni tartozás | G12: 0
A13: 4. | B13: TB alapokkal szembeni tartozás | G13: 0
A14: 5. | B14: Tartozásállomány önkormányzatok és intézmények felé | G14: 0
A15: 6. | B15: Egyéb tartozásállomány | G15: 0
A16: 7. | B16: Összesen: | C16: =SUM(C10:C15) -> 0 | D16: =SUM(D10:D15) -> 0 | E16: =SUM(E10:E15) -> 0 | F16: =SUM(F10:F15) -> 0 | G16: 0
A20: =+CONCATENATE("......................, ",LEFT(ÖSSZEFÜGGÉSEK!A5,4),". .......................... hó ..... nap") -> ......................, 2016. .......................... hó ..... nap
D24: költségvetési szerv vezetője

Sheet 1.sz.táj.
H1: 1. sz. tájékoztató tábla
A2: Többéves kihatással járó döntések számszerűsítése évenkénti bontásban és összesítve célok szerint
I3: Ezer forintban !
A4: Sor- szám | B4: Kötelezettség jogcíme | C4: Köt. váll. éve | D4: =+CONCATENATE(LEFT(ÖSSZEFÜGGÉSEK!A5,4)," előtti kifizetés") -> 2016 előtti kifizetés | E4: Kiadás vonzata évenként | I4: Összesen
E5: =+CONCATENATE(LEFT(ÖSSZEFÜGGÉSEK!A5,4),".") -> 2016. | F5: =+CONCATENATE(LEFT(ÖSSZEFÜGGÉSEK!A5,4)+1,".") -> 2017. | G5: =+CONCATENATE(LEFT(ÖSSZEFÜGGÉSEK!A5,4)+2,".") -> 2018. | H5: =+CONCATENATE(LEFT(ÖSSZEFÜGGÉSEK!A5,4)+2,".",CHAR(10)," után") -> 2018. után
A6: A | B6: B | C6: C | D6: D | E6: E | F6: F | G6: G | H6: H | I6: I=(D+E+F+G+H)
A7: 1. | B7: Működési célú finanszírozási kiadások (hiteltörlesztés, értékpapír vásárlás, stb.) | D7: =+D8+D9 -> 0 | E7: =+E8+E9 -> 0 | F7: =+F8+F9 -> 0 | G7: =+G8+G9 -> 0 | H7: =+H8+H9 -> 0 | I7: =SUM(D7:H7) -> 0
A8: 2. | B8: ............................ | I8: 0
A9: 3. | B9: ............................ | I9: 0
A10: 4. | B10: Felhalmozási célú finanszírozási kiadások (hiteltörlesztés, értékpapír vásárlás, stb.) | D10: =+D11+D12 -> 0 | E10: =+E11+E12 -> 0 | F10: =+F11+F12 -> 0 | G10: =+G11+G12 -> 0 | H10: =+H11+H12 -> 0 | I10: 0
A11: 5. | B11: ............................ | I11: 0
A12: 6. | B12: ............................ | I12: 0
A13: 7. | B13: Beruházási kiadások beruházásonként | D13: =+D14 -> 0 | E13: =+E14 -> 0 | F13: =+F14 -> 0 | G13: =+G14 -> 0 | H13: =+H14 -> 0 | I13: 0
A14: 8. | B14: ............................ | I14: 0
A15: 9. | B15: Felújítási kiadások felújításonként | D15: =+D16 -> 0 | E15: =+E16 -> 0 | F15: =+F16 -> 0 | G15: =+G16 -> 0 | H15: =+H16 -> 0 | I15: 0
A16: 10. | B16: ............................ | I16: 0
A17: 11. | B17: Egyéb (Pl.: garancia és kezességvállalás, stb.) | D17: =+D18 -> 0 | E17: =+E18 -> 0 | F17: =+F18 -> 0 | G17: =+G18 -> 0 | H17: =+H18 -> 0 | I17: 0
A18: 12. | B18: ............................ | I18: 0
A19: Összesen (1+4+7+9+11) | D19: =+D7+D10+D13+D15+D17 -> 0 | E19: 0 | F19: 0 | G19: 0 | H19: 0 | I19: 0

Sheet 2.sz.táj
G1: 2. sz. tájékoztató tábla
B2: Az önkormányzat által felvett hitelállomány alakulása lejárat és eszközök szerinti bontásban
H3: Ezer forintban !
A4: Sor- szám | B4: Hitel jellege | C4: Felvétel éve | D4: Lejárat éve | E4: Hitel állomány január 1-jén
E5: 2014. | F5: 2015. | G5: 2016. | H5: 2016. után
A6: 1 | B6: 2 | C6: 3 | D6: 4 | E6: 5 | F6: 6 | G6: 7 | H6: 8
A7: 1. | B7: Működési célú | E7: =SUM(E8:E11) -> 0 | F7: =SUM(F8:F11) -> 0 | G7: =SUM(G8:G11) -> 0 | H7: =SUM(H8:H11) -> 0
A8: 2. | B8: Működési célú hitel
A9: 3. | B9: ............................
A10: 4. | B10: ............................
A11: 5. | B11: ............................
A12: 6. | B12: Felhalmozási célú | E12: =SUM(E13:E16) -> 0 | F12: =SUM(F13:F16) -> 0 | G12: =SUM(G13:G16) -> 0 | H12: =SUM(H13:H16) -> 0
A13: 7. | B13: Felhalmozási célú hitel
A14: 8.
A15: 9. | B15: ............................
A16: 10. | B16: ............................
A17: 11. | B17: Összesen (1+6) | E17: =E7+E12 -> 0 | F17: =F7+F12 -> 0 | G17: =G7+G12 -> 0 | H17: =H7+H12 -> 0

Sheet 3.sz.táj
D1: 3. sz. tájékoztató tábla
A2: Sióagárd Község Önkormányzata által biztosított támogatások
A4: KIADÁSI JOGCÍMEK | B4: Eredeti előirányzat | C4: Módosított előirányzat | D4: Teljesítés
A5: Támogatásértékű kiadások | B5: =SUM(B6:B13) -> 0 | C5: =SUM(C6:C13) -> 7651968 | D5: =SUM(D6:D13) -> 7651968
A6: Óvoda működésére települési támogatás
A7: Óvodafenntartó Társulás működtetésére | C7: 5610000 | D7: 5610000
A8: Szekszárd MJV -Orvosi ügyeleti díj | C8: 1147807 | D8: 1147807
A9: Paks Szoc. Feladatok ellátása | C9: 600648 | D9: 600648
A10: Bursa ösztöndíj támogatás | C10: 200000 | D10: 200000
A11: Tolna és Környéke Szociális alap | C11: 93513 | D11: 93513
A14: Áht kívülre átadott pénzeszközök,támogatások | C14: 2140000 | D14: =SUM(D15:D21) -> 1490000
A15: Sióagárdi Sport Egyesület | D15: 600000
A16: Sióagárdi Hagyományőrző Egyesület | D16: 200000
A17: Sióagárdi Nyugdíjasok Egyesülete | D17: 100000
A18: Sióagárd Horgász Egyesület | D18: 100000
A19: Sióagárdi Polgárőr Egyesület | D19: 240000
A20: Sióagárd Leányvárér Egyesület | D20: 100000
A21: Sióagrád Jövője Alapítvány | D21: 150000
A23: ÖSSZESEN: | B23: =SUM(B5,B14) -> 0 | C23: =SUM(C5,C14) -> 9791968 | D23: =SUM(D5,D14) -> 9141968

Sheet 4.sz.táj
B1: Sióagárd Község Önkormányzata által nyújtott kölcsönök
H2: Ezer forintban ! | I2: 4. tájékoztató tábla az /2017. önkormányzati rendelethez
A3: Sor- szám | B3: Hitel, kölcsön | C3: Kölcsön- nyújtás éve | D3: Lejárat éve | E3: Hitel, kölcsön állomány 2015. dec. 31-én | F3: Hitel, kölcsön állomány december 31-én | H3: 2017. után
F4: 2016. | G4: 2017.
A5: A | B5: B | C5: C | D5: D | E5: E | F5: F | G5: G | H5: H
A6: 1. | B6: Rövid lejáratú | E6: =SUM(E7:E12) -> 0 | F6: =SUM(F7:F12) -> 0 | G6: =SUM(G7:G12) -> 0 | H6: =SUM(H7:H12) -> 0
A7: 2. | F7: 0 | G7: 0 | H7: 0
A8: 3. | B8: ............................
A9: 4. | B9: ............................
A10: 5. | B10: ............................
A11: 6. | B11: ............................
A12: 7. | B12: ............................
A13: 8. | B13: Hosszú lejáratú | E13: =SUM(E14:E19) -> 0 | F13: =SUM(F14:F19) -> 0 | G13: =SUM(G14:G19) -> 0 | H13: =SUM(H14:H19) -> 0
A14: 9. | B14: ............................
A15: 10. | B15: ............................
A16: 11. | B16: ............................
A17: 12. | B17: ............................
A18: 13. | B18: ............................
A19: 14. | B19: ............................
A20: 15. | B20: Összesen (1+8) | E20: =E6+E13 -> 0 | F20: =F6+F13 -> 0 | G20: =G6+G13 -> 0 | H20: =H6+H13 -> 0

Sheet 5.sz.táj
A1: =+CONCATENATE("Adósság állomány alakulása lejárat, eszközök, bel- és külföldi hitelezők szerinti bontásban ",CHAR(10),LEFT([1]ÖSSZEFÜGGÉSEK!A4,4),". december 31-én") -> Adósság állomány alakulása lejárat, eszközök, bel- és külföldi hitelezők szerinti bontásban 2014. december 31-én | J1: 5. tájékoztató tábla az …./2017.(….) önkormányzati rendelethez
A3: Sor-szám | B3: Adósságállomány eszközök szerint | C3: Nem lejárt | D3: Lejárt | I3: Nem lejárt, lejárt összes tartozás
D4: 1-90 nap közötti | E4: 91-180 nap közötti | F4: 181-360 nap közötti | G4: 360 napon túli | H4: Összes lejárt tartozás
A5: A | B5: B | C5: C | D5: D | E5: E | F5: F | G5: G | H5: H=(D+…+G) | I5: I=(C+H)
A6: I. Belföldi hitelezők
A7: 1. | B7: Adóhatósággal szembeni tartozások | H7: =SUM(D7:G7) -> 0 | I7: =C7+H7 -> 0
A8: 2. | B8: Központi költségvetéssel szemben fennálló tartozás | H8: 0 | I8: 0
A9: 3. | B9: Elkülönített állami pénzalapokkal szembeni tartozás | H9: 0 | I9: 0
A10: 4. | B10: TB alapokkal szembeni tartozás | H10: 0 | I10: 0
A11: 5. | B11: Tartozásállomány önkormányzatok és intézmények felé | H11: 0 | I11: 0
A12: 6. | B12: Szállítói tartozás | H12: 0 | I12: 0
A13: 7. | B13: Egyéb adósság | C13: 0 | H13: 0 | I13: 0
A14: Belföldi összesen: | C14: =SUM(C7:C13) -> 0 | D14: =SUM(D7:D13) -> 0 | E14: 0 | F14: 0 | G14: 0 | H14: 0 | I14: 0
A15: II. Külföldi hitelezők
A16: 1. | B16: Külföldi szállítók | H16: =SUM(D16:G16) -> 0 | I16: =C16+H16 -> 0
A17: 2. | B17: Egyéb adósság | H17: =SUM(D17:G17) -> 0 | I17: =C17+H17 -> 0
A18: Külföldi összesen: | C18: =SUM(C16:C17) -> 0 | D18: 0 | E18: 0 | F18: 0 | G18: 0 | H18: 0 | I18: 0
A19: Adósságállomány mindösszesen: | C19: =C14+C18 -> 0 | D19: 0 | E19: 0 | F19: 0 | G19: 0 | H19: 0 | I19: 0

Sheet 6.sz.táj
A1: Vagyonkimutatás a könyvviteli mérlegben szereplő eszközökről 2016. év
A3: ESZKÖZÖK | B3: Sorszám | C3: Bruttó | D3: értékcsökkenés | E3: nettó érték
C5: állományi érték
A6: A | B6: B | C6: C | D6: D | E6: E
A7: I. Immateriális javak | B7: 01. | C7: 385376 | D7: 31366 | E7: 355010
A8: II. Tárgyi eszközök (03+08+13+18+23) | B8: 02. | C8: =+C9+C14+C19+C24+C29 -> 905122556 | D8: =+D9+D14+D19+D24+D29 -> 457299882 | E8: =+E9+E14+E19+E24+E29 -> 891378580
A9: 1. Ingatlanok és kapcsolódó vagyoni értékű jogok (04+05+06+07) | B9: 03. | C9: 639559937 | D9: 221777953 | E9: 861337890
A10: 1.1. Forgalomképtelen ingatlanok és kapcsolódó vagyoni értékű jogok | B10: 04.
A11: 1.2. Nemzetgazdasági szempontból kiemelt jelentőségű ingatlanok és kapcsolódó vagyoni értékű jogok | B11: 05. | E11: =C11-D11 -> 0
A12: 1.3. Korlátozottan forgalomképes ingatlanok és kapcsolódó vagyoni értékű jogok | B12: 06. | E12: =C12-D12 -> 0
A13: 1.4. Üzleti ingatlanok és kapcsolódó vagyoni értékű jogok | B13: 07.
A14: 2. Gépek, berendezések, felszerelések, járművek (09+10+11+12) | B14: 08. | C14: 18447655 | D14: 1417278 | E14: 17030377
A15: 2.1. Forgalomképtelen gépek, berendezések, felszerelések, járművek | B15: 09.
A16: 2.2. Nemzetgazdasági szempontból kiemelt jelentőségű gépek, berendezések, felszerelések, járművek | B16: 10.
A17: 2.3. Korlátozottan forgalomképes gépek, berendezések, felszerelések, járművek | B17: 11. | E17: =C17-D17 -> 0
A18: 2.4. Üzleti gépek, berendezések, felszerelések, járművek | B18: 12. | E18: =C18-D18 -> 0
A19: 3. Tenyészállatok (14+15+16+17) | B19: 13. | C19: =+C20+C21+C22+C23 -> 0 | D19: =+D20+D21+D22+D23 -> 0 | E19: =+E20+E21+E22+E23 -> 0
A20: 3.1. Forgalomképtelen tenyészállatok | B20: 14. | D20: 0
A21: 3.2. Nemzetgazdasági szempontból kiemelt jelentőségű tenyészállatok | B21: 15.
A22: 3.3. Korlátozottan forgalomképes tenyészállatok | B22: 16.
A23: 3.4. Üzleti tenyészállatok | B23: 17.
A24: 4. Beruházások, felújítások (19+20+21+22) | B24: 18. | C24: =+C25+C26+C27+C28 -> 247114964 | D24: =+D25+D26+D27+D28 -> 234104651 | E24: =+E25+E26+E27+E28 -> 13010313
A25: 4.1. Forgalomképtelen beruházások, felújítások | B25: 19. | D25: 0
A26: 4.2. Nemzetgazdasági szempontból kiemelt jelentőségű beruházások, felújítások | B26: 20.
A27: 4.3. Korlátozottan forgalomképes beruházások, felújítások | B27: 21. | C27: 247114964 | D27: 234104651 | E27: 13010313
A28: 4.4. Üzleti beruházások, felújítások | B28: 22.
A29: 5. Tárgyi eszközök értékhelyesbítése (24+25+26+27) | B29: 23. | C29: =+C30+C31+C32+C33 -> 0 | D29: =+D30+D31+D32+D33 -> 0 | E29: =+E30+E31+E32+E33 -> 0
A30: 5.1. Forgalomképtelen tárgyi eszközök értékhelyesbítése | B30: 24.
A31: 5.2. Nemzetgazdasági szempontból kiemelt jelentőségű tárgyi eszközök értékhelyesbítése | B31: 25.
A32: 5.3. Korlátozottan forgalomképes tárgyi eszközök értékhelyesbítése | B32: 26.
A33: 5.4. Üzleti tárgyi eszközök értékhelyesbítése | B33: 27.
A34: III. Befektetett pénzügyi eszközök (29+34+39) | B34: 28. | C34: =+C35+C40+C45 -> 550000 | D34: =+D35+D40+D45 -> 50000 | E34: =+E35+E40+E45 -> 500000
A35: 1. Tartós részesedések (30+31+32+33) | B35: 29. | C35: =+C36+C37+C38+C39 -> 500000 | D35: =+D36+D37+D38+D39 -> 0 | E35: =+E36+E37+E38+E39 -> 500000
A36: 1.1. Forgalomképtelen tartós részesedések | B36: 30.
A37: 1.2. Nemzetgazdasági szempontból kiemelt jelentőségű tartós részesedések | B37: 31.
A38: 1.3. Korlátozottan forgalomképes tartós részesedések | B38: 32.
A39: 1.4. Üzleti tartós részesedések | B39: 33. | C39: 500000 | E39: 500000
A40: 2. Tartós hitelviszonyt megtestesítő értékpapírok (35+36+37+38) | B40: 34. | C40: 50000 | D40: =+D41+D42+D43+D44 -> 50000 | E40: =+E41+E42+E43+E44 -> 0
A41: 2.1. Forgalomképtelen tartós hitelviszonyt megtestesítő értékpapírok | B41: 35. | C41: 50000 | D41: 50000
A42: 2.2. Nemzetgazdasági szempontból kiemelt jelentőségű tartós hitelviszonyt megtestesítő értékpapírok | B42: 36.
A43: 2.3. Korlátozottan forgalomképes tartós hitelviszonyt megtestesítő értékpapírok | B43: 37.
A44: 2.4. Üzleti tartós hitelviszonyt megtestesítő értékpapírok | B44: 38.
A45: 3. Befektetett pénzügyi eszközök értékhelyesbítése (40+41+42+43) | B45: 39. | C45: =+C46+C47+C48+C49 -> 0 | D45: =+D46+D47+D48+D49 -> 0 | E45: =+E46+E47+E48+E49 -> 0
A46: 3.1. Forgalomképtelen befektetett pénzügyi eszközök értékhelyesbítése | B46: 40.
A47: 3.2. Nemzetgazdasági szempontból kiemelt jelentőségű befektetett pénzügyi eszközök értékhelyesbítése | B47: 41.
A48: 3.3. Korlátozottan forgalomképes befektetett pénzügyi eszközök értékhelyesbítése | B48: 42.
A49: 3.4. Üzleti befektetett pénzügyi eszközök értékhelyesbítése | B49: 43.
A50: IV. Koncesszióba, vagyonkezelésbe adott eszközök | B50: 44.
A51: A) NEMZETI VAGYONBA TARTOZÓ BEFEKTETETT ESZKÖZÖK (01+02+28+44) | B51: 45. | C51: =+C7+C8+C34+C50 -> 906057932 | D51: =+D7+D8+D34+D50 -> 457381248 | E51: =+E7+E8+E34+E50 -> 892233590
A52: I. Készletek | B52: 46. | C52: 157512 | D52: -157512
A53: II. Értékpapírok | B53: 47.
A54: B) NEMZETI VAGYONBA TARTOZÓ FORGÓESZKÖZÖK (46+47) | B54: 48. | C54: =+C52+C53 -> 157512 | D54: =+D52+D53 -> -157512 | E54: =+E52+E53 -> 0
A55: I. Lekötött bankbetétek | B55: 49.
A56: II. Pénztárak, csekkek, betétkönyvek | B56: 50. | C56: 0 | E56: 0
A57: III. Forintszámlák | B57: 51. | C57: 17180251 | E57: 17425068
A58: IV. Devizaszámlák | B58: 52.
A59: C) PÉNZESZKÖZÖK (49+50+51+52) | B59: 53. | C59: =+C55+C56+C57+C58 -> 17180251 | D59: =+D55+D56+D57+D58 -> 0 | E59: =+E55+E56+E57+E58 -> 17425068
A60: I. Költségvetési évben esedékes követelések | B60: 54. | C60: 14865897 | E60: 9145537
A61: II. Költségvetési évet követően esedékes követelések | B61: 55. | C61: 0 | E61: 0
A62: III. Követelés jellegű sajátos elszámolások | B62: 56. | C62: 6378036 | E62: 5099549
A63: D) KÖVETELÉSEK (54+55+56) | B63: 57. | C63: =+C60+C61+C62 -> 21243933 | D63: =+D60+D61+D62 -> 0 | E63: =+E60+E61+E62 -> 14245086
A64: I. December havi illetmények, munkabérek elszámolása | B64: 58.
A65: II. Utalványok, bérletek és más hasonló, készpénz-helyettesítő fizetési eszköznek nem minősülő eszközök elszámolásai | B65: 59.
A66: E) EGYÉB SAJÁTOS ESZKÖZOLDALI ELSZÁMOLÁSOK (58+59) | B66: 60. | C66: =+C64+C65 -> 0 | D66: =+D64+D65 -> 0 | E66: 4118829
A67: F) AKTÍV IDŐBELI ELHATÁROLÁSOK | B67: 61. | C67: 0
A68: ESZKÖZÖK ÖSSZESEN (45+48+53+57+60+61) | B68: 62. | C68: =+C51+C54+C59+C63+C66+C67 -> 944639628 | D68: =+D51+D54+D59+D63+D66+D67 -> 457223736 | E68: =+E51+E54+E59+E63+E66+E67 -> 928022573

Sheet 7.sz.táj
C1: 7. sz. tájékoztató tábla
A2: VAGYONKIMUTATÁS a könyvviteli mérlegben szereplő forrásokról a könyvviteli mérlegben értékkel szereplő forrásokról
A3: 2016. év
A6: FORRÁSOK | B6: Sorszám | C6: állományi érték
A8: A | B8: B | C8: C
A9: I. Nemzeti vagyon induláskori értéke | B9: 01. | C9: 515462811
A10: II. Nemzeti vagyon változásai | B10: 02. | C10: 0
A11: III. Egyéb eszközök induláskori értéke és változásai | B11: 03. | C11: 8919295
A12: IV. Felhalmozott eredmény | B12: 04. | C12: 56635459
A13: V. Eszközök értékhelyesbítésének forrása | B13: 05.
A14: VI. Mérleg szerinti eredmény | B14: 06. | C14: -14039792
A15: G) SAJÁT TŐKE (01+….+06) | B15: 07. | C15: =+C9+C10+C11+C12+C13+C14 -> 566977773
A16: I. Költségvetési évben esedékes kötelezettségek | B16: 08. | C16: 20747117
A17: II. Költségvetési évet követően esedékes kötelezettségek | B17: 09. | C17: 1421796
A18: III. Kötelezettség jellegű sajátos elszámolások | B18: 10. | C18: 9540654
A19: H) KÖTELEZETTSÉGEK (08+09+10) | B19: 11. | C19: =+C16+C17+C18 -> 31709567
A20: I) KINCSTÁRI SZÁMLAVEZETÉSSEL KAPCSOLATOS ELSZÁMOLÁSOK | B20: 12.
A21: J) PASSZÍV IDŐBELI ELHATÁROLÁSOK | B21: 13. | C21: 329335233
A22: FORRÁSOK ÖSSZESEN (07+11+12+13) | B22: 14. | C22: =+C15+C19+C20+C21 -> 928022573

Sheet 8.sz.táj
D1: 8. sz. tájékoztató tábla
A2: =+CONCATENATE("VAGYONKIMUTATÁS",CHAR(10),"az érték nélkül nyilvántartott eszközökről",CHAR(10),LEFT([1]ÖSSZEFÜGGÉSEK!A4,4),".") -> VAGYONKIMUTATÁS az érték nélkül nyilvántartott eszközökről 2014.
A4: Megnevezés | B4: Sorszám | C4: Mennyiség (db) | D4: Értéke (E Ft)
A5: A | B5: B | C5: C | D5: D
A6: „0”-ra leírt eszközök | B6: 1.
A7: Használatban lévő kisértékű immateriális javak | B7: 2.
A8: Használatban lévő kisértékű tárgyi eszközök | B8: 3.
A9: Készletek | B9: 4.
A10: 01 számlacsoportban nyilvántartott befektetett eszközök (6+…+9) | B10: 5. | D10: =+D11+D12+D13+D14 -> 0
A11: Államháztartáson belüli vagyonkezelésbe adott eszközök | B11: 6.
A12: Bérbe vett befektetett eszközök | B12: 7.
A13: Letétbe, bizományba, üzemeltetésre átvett befektetett eszközök | B13: 8.
A14: PPP konstrukcióban használt befektetett eszközök | B14: 9.
A15: 02 számlacsoportban nyilvántartott készletek (11+…+13) | B15: 10. | D15: =+D16+D17+D18 -> 0
A16: Bérbe vett készletek | B16: 11.
A17: Letétbe bizományba átvett készletek | B17: 12.
A18: Intervenciós készletek | B18: 13.
A19: Gyűjtemény, régészeti lelet* (15+…+17) | B19: 14. | D19: =+D20+D21+D22 -> 0
A20: Közgyűjtemény | B20: 15.
A21: Saját gyűjteményben nyilvántartott kulturális javak | B21: 16.
A22: Régészeti lelet | B22: 17.
A23: Egyéb érték nélkül nyilvántartott eszközök | B23: 18.
B24: 19.
B25: 20.
B26: 21.
B27: 22.
B28: 23.
B29: 24.
B30: 25.
B31: 26.
B32: 27.
B33: 28.
B34: 29.
B35: 30.
B36: 31.
B37: 32.
B38: 33.
A39: Összesen (1+…+4)+5+10+14+(18+…+31): | D39: =+D6+D7+D8+D9+D10+D15+D19+D23+D24+D25+D26+D27+D28+D29+D30+D31+D32+D33+D34+D35+D36+D37+D38 -> 0
A40: * Nvt. 1. § (2) bekezdés g) és h) pontja szerinti kulturális javak és régészeti eszközök

Sheet 9.sz.táj
E1: 9. számú tájékoztató tábla | F1: 9. tájékoztató tábla az …./2017. (….) önkormányzati rendelethez
A2: =+CONCATENATE("A ………Önkormányzat tulajdonában álló gazdálkodó szervezetek működéséből származó",CHAR(10),"kötelezettségek és részesedések alakulása a ",LEFT([1]ÖSSZEFÜGGÉSEK!A4,4),". évben") -> A ………Önkormányzat tulajdonában álló gazdálkodó szervezetek működéséből származó kötelezettségek és részesedések alakulása a 2014. évben
A4: Sorszám | B4: Gazdálkodó szervezet megnevezése | C4: Részesedés mértéke (%-ban) | D4: Részesedés összege (Ft-ban) | E4: Működésből származó kötelezettségek összege XII. 31-én (Ft-ban)
A5: 1.
A6: 2.
A7: 3.
A8: 4.
A9: 5.
A10: 6.
A11: 7.
A12: 8.
A13: 9.
A14: 10.
A15: 11.
A16: 12.
A17: 13.
A18: 14.
A19: 15.
A20: 16.
A21: 17.
A22: ÖSSZESEN: | D22: =IF(SUM(D5:D21)=0,"",SUM(D5:D21)) ->  | E22: =IF(SUM(E5:E21)=0,"",SUM(E5:E21)) -> 

Sheet 10.sz.táj.
B5: MARADVÁNYKIMUTATÁS
B8: Megnevezés | C8: Önkormányzat
A9: 1 | B9: Alaptevékenység kölségvetési bevételei | C9: 120152989
A10: 2 | B10: Alaptevékenység költségvetési kiadásai | C10: 121749426
A11: I. | B11: Alaptevékenység költségvetési egyenlege | C11: =C9-C10 -> -1596437
A12: 3 | B12: Alaptevékenység finanszírozási bevételei | C12: 15871541
A13: 4 | B13: Alaptevékenység finanszírozási kiadásai | C13: 1203622
A14: II. | B14: Alaptevékenység finanszírozási egyenlege | C14: =C12-C13 -> 14667919
A15: A) | B15: Alaptevékenység maradványa | C15: =C11+C14 -> 13071482
A16: 5 | B16: Vállalkozási tevékenység költségvetési bevételei | C16: 0
A17: 6 | B17: Vállalkozási tevékenység költségvetési kiadásai | C17: 0
A18: III. | B18: Vállalkozási tevékenység költségvetési egyenlege | C18: 0
A19: 7 | B19: Vállalkozási tevékenység finanszírozási bevételei | C19: 0
A20: 8 | B20: Vállalkozási tevékenység finanszírozási kiadásai | C20: 0
A21: IV. | B21: Vállalkozási tevékenység finanszírozási egyenlege | C21: 0
A22: B) | B22: Vállakozási tevékenység maradványa | C22: 0
A23: C) | B23: Összes maradvány | C23: 13071482
A24: D) | B24: Alaptevékenység kötelezettségvállalással terhelt maradványa
A25: E) | B25: Alaptevékenység szabad maradványa | C25: 0
